Publisher Label,Publisher URI,"Supplier","Net Amount (£)","Organisational Unit","Merchant Category Code","Purpose","Payment Date"
"Wolverhampton City Council","http://opendatacommunities.org/id/metropolitan-district-council/wolverhampton","CARVER/WOLVERHAMPTON/L","29.69","Culwell Street Depot","5211","Equipment - Health and Safety","28/02/2018"
"Wolverhampton City Council","http://opendatacommunities.org/id/metropolitan-district-council/wolverhampton","AMAZON SVCS EU-UK AMAZ","74.98","Employment Programmes","5942","Books","28/02/2018"
"Wolverhampton City Council","http://opendatacommunities.org/id/metropolitan-district-council/wolverhampton","Cross Country Trains","7.80","Head of Strategic Commissioning � People","4112","Public Transport","28/02/2018"
"Wolverhampton City Council","http://opendatacommunities.org/id/metropolitan-district-council/wolverhampton","PAYPAL  123REGLIMIT","9.99","Technical Support","4816","Computing - Purchase of Software","28/02/2018"
"Wolverhampton City Council","http://opendatacommunities.org/id/metropolitan-district-council/wolverhampton","ARGOS BLACKHEATH","29.15","LAC Transitions Team","5310","Client Allowances","28/02/2018"
"Wolverhampton City Council","http://opendatacommunities.org/id/metropolitan-district-council/wolverhampton","TVLICENSING.CO.UK","147.00","Specialist Support Service - North","7392","Services - Consultants","28/02/2018"
"Wolverhampton City Council","http://opendatacommunities.org/id/metropolitan-district-council/wolverhampton","B & Q 1243","12.00","Education Catering - General Overheads","5211","Materials","28/02/2018"
"Wolverhampton City Council","http://opendatacommunities.org/id/metropolitan-district-council/wolverhampton","Trainline","122.50","Legal Services","4112","Public Transport","28/02/2018"
"Wolverhampton City Council","http://opendatacommunities.org/id/metropolitan-district-council/wolverhampton","J VAN VLIET BIRMINGHAM","86.80","Creative Studies Delivery Area","5399","Materials","28/02/2018"
"Wolverhampton City Council","http://opendatacommunities.org/id/metropolitan-district-council/wolverhampton","J VAN VLIET BIRMINGHAM","23.90","Creative Studies Delivery Area","5399","Materials","28/02/2018"
"Wolverhampton City Council","http://opendatacommunities.org/id/metropolitan-district-council/wolverhampton","Trainline","-212.45","CIN/CP Social Work Unit - Area 4","4112","Section 17","28/02/2018"
"Wolverhampton City Council","http://opendatacommunities.org/id/metropolitan-district-council/wolverhampton","Trainline","223.95","CIN/CP Social Work Unit - Area 4","4112","Section 17","28/02/2018"
"Wolverhampton City Council","http://opendatacommunities.org/id/metropolitan-district-council/wolverhampton","Trainline","94.40","CIN/CP Social Work Unit - Area 4","4112","Section 17","28/02/2018"
"Wolverhampton City Council","http://opendatacommunities.org/id/metropolitan-district-council/wolverhampton","WWW.HIVIS.NET","96.60","Culwell Street Depot","5137","Clothing / Uniforms","28/02/2018"
"Wolverhampton City Council","http://opendatacommunities.org/id/metropolitan-district-council/wolverhampton","Amazon EU","124.99","Customer Services","5969","Equipment - Purchase","28/02/2018"
"Wolverhampton City Council","http://opendatacommunities.org/id/metropolitan-district-council/wolverhampton","FLYTE SO FANCYG-KITS.C","26.41","Northicote Farm","5995","Equipment - Purchase","28/02/2018"
"Wolverhampton City Council","http://opendatacommunities.org/id/metropolitan-district-council/wolverhampton","TFM FARM & COUNTRY SUP","92.97","Northicote Farm","5399","Equipment - Purchase","28/02/2018"
"Wolverhampton City Council","http://opendatacommunities.org/id/metropolitan-district-council/wolverhampton","TFM FARM & COUNTRY SUP","190.42","Northicote Farm","5399","Equipment - Purchase","28/02/2018"
"Wolverhampton City Council","http://opendatacommunities.org/id/metropolitan-district-council/wolverhampton","AMAZON EU AMAZON.CO.UK","21.07","Intensive Family Support Team","5999","Equipment - Purchase","28/02/2018"
"Wolverhampton City Council","http://opendatacommunities.org/id/metropolitan-district-council/wolverhampton","AMAZON EU AMAZON.CO.UK","14.28","Intensive Family Support Team","5999","Equipment - Purchase","28/02/2018"
"Wolverhampton City Council","http://opendatacommunities.org/id/metropolitan-district-council/wolverhampton","Amazon UK Marketplace","19.08","Intensive Family Support Team","5942","Books","28/02/2018"
"Wolverhampton City Council","http://opendatacommunities.org/id/metropolitan-district-council/wolverhampton","ASDA HOME SHOPPING","-2.46","Upper Pendeford Farm Childrens Home","5411","Provisions (Not for resale)","28/02/2018"
"Wolverhampton City Council","http://opendatacommunities.org/id/metropolitan-district-council/wolverhampton","POST OFFICE COUNTER","11.42","LAC Transitions Team","9402","Client Allowances","28/02/2018"
"Wolverhampton City Council","http://opendatacommunities.org/id/metropolitan-district-council/wolverhampton","Trainline","178.80","Safeguarding Admin Resource","4112","Public Transport","28/02/2018"
"Wolverhampton City Council","http://opendatacommunities.org/id/metropolitan-district-council/wolverhampton","com-solutions.co.uk","108.68","Adoption and Residence Team & Allowances","4812","Comms - Mobile Telephones","28/02/2018"
"Wolverhampton City Council","http://opendatacommunities.org/id/metropolitan-district-council/wolverhampton","APL /AbcCars","5.92","IMPACT","4121","Client Transport","28/02/2018"
"Wolverhampton City Council","http://opendatacommunities.org/id/metropolitan-district-council/wolverhampton","WEST MID TRAVEL","492.75","IMPACT","4131","Public Transport","28/02/2018"
"Wolverhampton City Council","http://opendatacommunities.org/id/metropolitan-district-council/wolverhampton","Trainline","61.00","Admin & Support","4112","Public Transport","28/02/2018"
"Wolverhampton City Council","http://opendatacommunities.org/id/metropolitan-district-council/wolverhampton","ASDA HOME SHOPPING","191.13","Upper Pendeford Farm Childrens Home","5411","Provisions (Not for resale)","28/02/2018"
"Wolverhampton City Council","http://opendatacommunities.org/id/metropolitan-district-council/wolverhampton","AMAZON SVCS EU-UK AMAZ","4.76","Emergency Duty Team","5942","Equipment - Purchase","28/02/2018"
"Wolverhampton City Council","http://opendatacommunities.org/id/metropolitan-district-council/wolverhampton","W M MORRISONS.COM","93.27","Discretionary Fund","5411","Materials","28/02/2018"
"Wolverhampton City Council","http://opendatacommunities.org/id/metropolitan-district-council/wolverhampton","SCREWFIX DIRECT","130.05","Service Wide","5211","Equipment - Purchase","28/02/2018"
"Wolverhampton City Council","http://opendatacommunities.org/id/metropolitan-district-council/wolverhampton","DUNELM ONLINE ORDER","99.96","LAC Transitions Team","5714","Client Allowances","28/02/2018"
"Wolverhampton City Council","http://opendatacommunities.org/id/metropolitan-district-council/wolverhampton","IKEA LIMITED","11.48","LAC Transitions Team","5712","Client Allowances","28/02/2018"
"Wolverhampton City Council","http://opendatacommunities.org/id/metropolitan-district-council/wolverhampton","WESTMINSTER FORUM","460.00","School Improvement","7392","Services - Consultants","28/02/2018"
"Wolverhampton City Council","http://opendatacommunities.org/id/metropolitan-district-council/wolverhampton","WWW.BRITISHGAS.CO.","42.50","Southside","5969","Electricity","28/02/2018"
"Wolverhampton City Council","http://opendatacommunities.org/id/metropolitan-district-council/wolverhampton","WWW.ARGOS.CO.UK","110.40","LAC Transitions Team","5310","Client Allowances","28/02/2018"
"Wolverhampton City Council","http://opendatacommunities.org/id/metropolitan-district-council/wolverhampton","WWW.ARGOS.CO.UK","133.32","LAC Transitions Team","5310","Client Allowances","28/02/2018"
"Wolverhampton City Council","http://opendatacommunities.org/id/metropolitan-district-council/wolverhampton","AMAZON EU AMAZON.CO.UK","26.59","Central Baths","5999","Equipment - Purchase","28/02/2018"
"Wolverhampton City Council","http://opendatacommunities.org/id/metropolitan-district-council/wolverhampton","Virgin Trains","257.40","Black Country Transport Director","4112","Public Transport","27/02/2018"
"Wolverhampton City Council","http://opendatacommunities.org/id/metropolitan-district-council/wolverhampton","Virgin Trains","111.70","Scrutiny & Transparency","4112","Public Transport","27/02/2018"
"Wolverhampton City Council","http://opendatacommunities.org/id/metropolitan-district-council/wolverhampton","WOLVERHAMPTON CC","1.25","IMPACT","7523","Car Allowances","27/02/2018"
"Wolverhampton City Council","http://opendatacommunities.org/id/metropolitan-district-council/wolverhampton","WOLVERHAMPTON CC","4.58","IMPACT","7523","Car Allowances","27/02/2018"
"Wolverhampton City Council","http://opendatacommunities.org/id/metropolitan-district-council/wolverhampton","Trainline","-48.50","Admin & Support","4112","Public Transport","27/02/2018"
"Wolverhampton City Council","http://opendatacommunities.org/id/metropolitan-district-council/wolverhampton","COLUMBUS TRAINLINE","1.00","City Direct","6300","Services - Supplies & Services to users","27/02/2018"
"Wolverhampton City Council","http://opendatacommunities.org/id/metropolitan-district-council/wolverhampton","Trainline","88.70","City Direct","4112","Client Transport","27/02/2018"
"Wolverhampton City Council","http://opendatacommunities.org/id/metropolitan-district-council/wolverhampton","NATIONWIDE FRANKING SE","301.88","Document Centre - General","7399","Materials","27/02/2018"
"Wolverhampton City Council","http://opendatacommunities.org/id/metropolitan-district-council/wolverhampton","Virgin Trains","75.10","LAC Team","4112","Public Transport","27/02/2018"
"Wolverhampton City Council","http://opendatacommunities.org/id/metropolitan-district-council/wolverhampton","HERTZ","93.40","Headstart Phase 3","3357","Hire of Vehicles","27/02/2018"
"Wolverhampton City Council","http://opendatacommunities.org/id/metropolitan-district-council/wolverhampton","NATWEST BANK","30.00","Ernest Bold Court","6011","Provisions (Not for resale)","27/02/2018"
"Wolverhampton City Council","http://opendatacommunities.org/id/metropolitan-district-council/wolverhampton","Trainline","139.30","Revenues","4112","Public Transport","27/02/2018"
"Wolverhampton City Council","http://opendatacommunities.org/id/metropolitan-district-council/wolverhampton","DULUX DECORATOR CENTRE","7.12","Maintenance of Exhibits","5198","Equipment - Purchase","27/02/2018"
"Wolverhampton City Council","http://opendatacommunities.org/id/metropolitan-district-council/wolverhampton","DULUX DECORATOR CENTRE","66.39","Maintenance of Exhibits","5198","Equipment - Purchase","27/02/2018"
"Wolverhampton City Council","http://opendatacommunities.org/id/metropolitan-district-council/wolverhampton","ALDI 94 772","4.70","LAC Transitions Team","5411","Client Allowances","27/02/2018"
"Wolverhampton City Council","http://opendatacommunities.org/id/metropolitan-district-council/wolverhampton","M&C RESRVTION SVCS LTD","67.99","Adoption and Residence Team & Allowances","7011","Accommodation Costs","27/02/2018"
"Wolverhampton City Council","http://opendatacommunities.org/id/metropolitan-district-council/wolverhampton","WWW.ISTOCK.COM","190.00","Communications & Marketing - General","5971","Services - Professional Fees","27/02/2018"
"Wolverhampton City Council","http://opendatacommunities.org/id/metropolitan-district-council/wolverhampton","JAYCEE TROPHIES","189.84","Headstart - Young People Engagement","5945","Equipment - Purchase","27/02/2018"
"Wolverhampton City Council","http://opendatacommunities.org/id/metropolitan-district-council/wolverhampton","INSURE 4","240.85","Learning Technologies","7997","Training Expenses","27/02/2018"
"Wolverhampton City Council","http://opendatacommunities.org/id/metropolitan-district-council/wolverhampton","WILKO RETAIL LIMIT","55.83","Global Budgets","5722","Equipment - Purchase","27/02/2018"
"Wolverhampton City Council","http://opendatacommunities.org/id/metropolitan-district-council/wolverhampton","B & Q 1243","11.82","Ernest Bold Court","5211","Fixtures and Fittings - R&M","27/02/2018"
"Wolverhampton City Council","http://opendatacommunities.org/id/metropolitan-district-council/wolverhampton","ARGOS LTD","262.53","Headstart - Young People Engagement","5310","Equipment - Purchase","27/02/2018"
"Wolverhampton City Council","http://opendatacommunities.org/id/metropolitan-district-council/wolverhampton","JAYCEE TROPHIES","157.48","Headstart - Young People Engagement","5945","Equipment - Purchase","27/02/2018"
"Wolverhampton City Council","http://opendatacommunities.org/id/metropolitan-district-council/wolverhampton","B & Q 1243","14.89","Ernest Bold Court","5211","Fixtures and Fittings - R&M","27/02/2018"
"Wolverhampton City Council","http://opendatacommunities.org/id/metropolitan-district-council/wolverhampton","B & Q 1243","1.03","Ernest Bold Court","5211","Fixtures and Fittings - R&M","27/02/2018"
"Wolverhampton City Council","http://opendatacommunities.org/id/metropolitan-district-council/wolverhampton","SWIFT SAVE UK LTD","16.67","Ernest Bold Court","5200","Fixtures and Fittings - R&M","27/02/2018"
"Wolverhampton City Council","http://opendatacommunities.org/id/metropolitan-district-council/wolverhampton","ASDA GEORGE COM LEEDS","146.25","LAC Transitions Team","5411","Client Allowances","27/02/2018"
"Wolverhampton City Council","http://opendatacommunities.org/id/metropolitan-district-council/wolverhampton","ASDA HOME SHOPPING","63.37","Ernest Bold Court","5411","Provisions (Not for resale)","27/02/2018"
"Wolverhampton City Council","http://opendatacommunities.org/id/metropolitan-district-council/wolverhampton","Trainline","292.50","CIN/CP Social Work Unit - Area 4","4112","Public Transport","27/02/2018"
"Wolverhampton City Council","http://opendatacommunities.org/id/metropolitan-district-council/wolverhampton","THE POST OFFICE","5.25","CIN/CP Social Work Unit - Area 4","9402","Comms - Postage","27/02/2018"
"Wolverhampton City Council","http://opendatacommunities.org/id/metropolitan-district-council/wolverhampton","YOURCASH","30.00","Ernest Bold Court","6011","Provisions (Not for resale)","27/02/2018"
"Wolverhampton City Council","http://opendatacommunities.org/id/metropolitan-district-council/wolverhampton","WWW.LPC-LAW.CO.UK","142.00","Legal Services","8111","Services - Professional Fees","27/02/2018"
"Wolverhampton City Council","http://opendatacommunities.org/id/metropolitan-district-council/wolverhampton","Trainline","86.50","Inclusion Support","4112","Public Transport","27/02/2018"
"Wolverhampton City Council","http://opendatacommunities.org/id/metropolitan-district-council/wolverhampton","TIMPSON LTD","12.00","Global Budgets","7251","Fixtures and Fittings - R&M","27/02/2018"
"Wolverhampton City Council","http://opendatacommunities.org/id/metropolitan-district-council/wolverhampton","HOBBY CRAFT LTD","181.72","Adoption and Residence Team & Allowances","5970","Stationery","27/02/2018"
"Wolverhampton City Council","http://opendatacommunities.org/id/metropolitan-district-council/wolverhampton","IWM","528.00","Pop Gallery Space","7999","Services - Fees and Charges","26/02/2018"
"Wolverhampton City Council","http://opendatacommunities.org/id/metropolitan-district-council/wolverhampton","WWW.ARGOS.CO.UK","119.94","EIP Locality 3","5310","Grant Payments","26/02/2018"
"Wolverhampton City Council","http://opendatacommunities.org/id/metropolitan-district-council/wolverhampton","Amazon UK Marketplace","43.88","EIP Locality 8","5942","Equipment - Purchase","26/02/2018"
"Wolverhampton City Council","http://opendatacommunities.org/id/metropolitan-district-council/wolverhampton","ARGOS RETAIL GROUP","19.99","EIP Locality 2","5310","Equipment - Purchase","26/02/2018"
"Wolverhampton City Council","http://opendatacommunities.org/id/metropolitan-district-council/wolverhampton","WM MORRISON 024","12.14","EIP Locality 2","5411","Provisions (Not for resale)","26/02/2018"
"Wolverhampton City Council","http://opendatacommunities.org/id/metropolitan-district-council/wolverhampton","REDWINGS LODGE","35.79","Emergency Duty Team","7011","Services - Supplies & Services to users","26/02/2018"
"Wolverhampton City Council","http://opendatacommunities.org/id/metropolitan-district-council/wolverhampton","Virgin Trains","241.60","Adoption and Residence Team & Allowances","4112","Public Transport","26/02/2018"
"Wolverhampton City Council","http://opendatacommunities.org/id/metropolitan-district-council/wolverhampton","WWW.THERANGE.CO.UK","20.75","Adoption and Residence Team & Allowances","5712","Equipment - Purchase","26/02/2018"
"Wolverhampton City Council","http://opendatacommunities.org/id/metropolitan-district-council/wolverhampton","YOURCASH","50.00","Headstart - Young People Engagement","6011","Financial Assistance In Exceptional Circ","26/02/2018"
"Wolverhampton City Council","http://opendatacommunities.org/id/metropolitan-district-council/wolverhampton","AMZ Amazon.co.uk","-25.47","Headstart - Young People Engagement","5999","Equipment - Purchase","26/02/2018"
"Wolverhampton City Council","http://opendatacommunities.org/id/metropolitan-district-council/wolverhampton","AMZ Amazon.co.uk","-25.48","Headstart - Young People Engagement","5999","Equipment - Purchase","26/02/2018"
"Wolverhampton City Council","http://opendatacommunities.org/id/metropolitan-district-council/wolverhampton","AMZ Amazon.co.uk","-25.48","Headstart - Young People Engagement","5999","Equipment - Purchase","26/02/2018"
"Wolverhampton City Council","http://opendatacommunities.org/id/metropolitan-district-council/wolverhampton","UK PIC FR. SUPPLIES","81.13","Maintenance of Exhibits","5970","Equipment - Purchase","26/02/2018"
"Wolverhampton City Council","http://opendatacommunities.org/id/metropolitan-district-council/wolverhampton","AMZ Amazon.co.uk","-25.47","Headstart - Young People Engagement","5999","Equipment - Purchase","26/02/2018"
"Wolverhampton City Council","http://opendatacommunities.org/id/metropolitan-district-council/wolverhampton","AMZ Amazon.co.uk","-25.47","Headstart - Young People Engagement","5999","Equipment - Purchase","26/02/2018"
"Wolverhampton City Council","http://opendatacommunities.org/id/metropolitan-district-council/wolverhampton","E01350800000000","30.00","Ernest Bold Court","6011","Materials","26/02/2018"
"Wolverhampton City Council","http://opendatacommunities.org/id/metropolitan-district-council/wolverhampton","ASDA SUPERSTORE","19.49","Mayoral Expenses","5411","Provisions (Not for resale)","26/02/2018"
"Wolverhampton City Council","http://opendatacommunities.org/id/metropolitan-district-council/wolverhampton","EBUYER (UK) LTD","895.21","ICT Desktop Refresh","5722","Equipment - Purchase","26/02/2018"
"Wolverhampton City Council","http://opendatacommunities.org/id/metropolitan-district-council/wolverhampton","Amazon UK Marketplace","23.25","Strategic ICTS (ICT Serv Budget)","5942","Equipment - Purchase","26/02/2018"
"Wolverhampton City Council","http://opendatacommunities.org/id/metropolitan-district-council/wolverhampton","INSPIRE HIRE","183.25","Quality Assurance & Policies","5021","Furniture","26/02/2018"
"Wolverhampton City Council","http://opendatacommunities.org/id/metropolitan-district-council/wolverhampton","INSPIRE HIRE","183.25","Quality Assurance & Policies","5021","Furniture","26/02/2018"
"Wolverhampton City Council","http://opendatacommunities.org/id/metropolitan-district-council/wolverhampton","SurveyMonkey","336.00","Safeguarding Board - Childrens","7372","Computing - Purchase of Software","26/02/2018"
"Wolverhampton City Council","http://opendatacommunities.org/id/metropolitan-district-council/wolverhampton","LEWINNICK LODGE","2.50","Headstart Phase 3","5812","Subsistence","26/02/2018"
"Wolverhampton City Council","http://opendatacommunities.org/id/metropolitan-district-council/wolverhampton","HOME BARGAINS","11.06","EIP Locality 1","5251","Grant Payments","26/02/2018"
"Wolverhampton City Council","http://opendatacommunities.org/id/metropolitan-district-council/wolverhampton","E00783400000000","20.00","EIP Locality 1","6011","Grant Payments","26/02/2018"
"Wolverhampton City Council","http://opendatacommunities.org/id/metropolitan-district-council/wolverhampton","E01510300000000","200.00","MASH","6011","Section 17","26/02/2018"
"Wolverhampton City Council","http://opendatacommunities.org/id/metropolitan-district-council/wolverhampton","Weebly","-116.00","Technical Support","5817","Computing - Purchase of Software","26/02/2018"
"Wolverhampton City Council","http://opendatacommunities.org/id/metropolitan-district-council/wolverhampton","DEBENHAMS.COM","18.00","Mayoral Expenses","5311","Equipment - Purchase","26/02/2018"
"Wolverhampton City Council","http://opendatacommunities.org/id/metropolitan-district-council/wolverhampton","DEBENHAMS.COM","32.00","Mayoral Expenses","5311","Equipment - Purchase","26/02/2018"
"Wolverhampton City Council","http://opendatacommunities.org/id/metropolitan-district-council/wolverhampton","ASDA HOME SHOPPING","5.00","Ernest Bold Court","5411","Provisions (Not for resale)","26/02/2018"
"Wolverhampton City Council","http://opendatacommunities.org/id/metropolitan-district-council/wolverhampton","ASDA HOME SHOPPING","-3.00","Ernest Bold Court","5411","Provisions (Not for resale)","26/02/2018"
"Wolverhampton City Council","http://opendatacommunities.org/id/metropolitan-district-council/wolverhampton","ASDA HOME SHOPPING","71.13","Ernest Bold Court","5411","Provisions (Not for resale)","26/02/2018"
"Wolverhampton City Council","http://opendatacommunities.org/id/metropolitan-district-council/wolverhampton","Trainline","73.50","Head of Service - LAC","4112","Public Transport","26/02/2018"
"Wolverhampton City Council","http://opendatacommunities.org/id/metropolitan-district-council/wolverhampton","WWW.ICO.GOV.UK","35.00","Members Expenses","9399","Subscriptions","26/02/2018"
"Wolverhampton City Council","http://opendatacommunities.org/id/metropolitan-district-council/wolverhampton","AMAZON EU AMAZON.CO.UK","61.75","Welfare Rights","5999","Publications","26/02/2018"
"Wolverhampton City Council","http://opendatacommunities.org/id/metropolitan-district-council/wolverhampton","AMZ Apeman Direct","-182.97","Welfare Rights","5999","Equipment - Purchase","26/02/2018"
"Wolverhampton City Council","http://opendatacommunities.org/id/metropolitan-district-council/wolverhampton","REGISTRARS OFFICE","30.00","Head of Service - CINCP","8299","Services - Professional Fees","26/02/2018"
"Wolverhampton City Council","http://opendatacommunities.org/id/metropolitan-district-council/wolverhampton","REGISTRARS OFFICE","41.00","Head of Service - CINCP","8299","Services - Professional Fees","26/02/2018"
"Wolverhampton City Council","http://opendatacommunities.org/id/metropolitan-district-council/wolverhampton","LIDL UK","29.55","Children & Family Contact Services","5411","Provisions (Not for resale)","26/02/2018"
"Wolverhampton City Council","http://opendatacommunities.org/id/metropolitan-district-council/wolverhampton","LIDL UK","41.35","Children & Family Contact Services","5411","Provisions (Not for resale)","26/02/2018"
"Wolverhampton City Council","http://opendatacommunities.org/id/metropolitan-district-council/wolverhampton","THE FLOWER STALL","60.00","Mayoral Expenses","5992","Equipment - Purchase","26/02/2018"
"Wolverhampton City Council","http://opendatacommunities.org/id/metropolitan-district-council/wolverhampton","NOVOTEL LONDON WEMBLEY","70.83","Scrutiny & Transparency","7011","Accommodation Costs","26/02/2018"
"Wolverhampton City Council","http://opendatacommunities.org/id/metropolitan-district-council/wolverhampton","Virgin Trains","68.00","Scrutiny & Transparency","4112","Public Transport","26/02/2018"
"Wolverhampton City Council","http://opendatacommunities.org/id/metropolitan-district-council/wolverhampton","Amazon UK Marketplace","5.10","Children & Family Contact Services","5942","Equipment - Purchase","26/02/2018"
"Wolverhampton City Council","http://opendatacommunities.org/id/metropolitan-district-council/wolverhampton","GLOBE/PACKAGING EXPRES","30.75","Collections","5111","Materials","26/02/2018"
"Wolverhampton City Council","http://opendatacommunities.org/id/metropolitan-district-council/wolverhampton","Virgin Trains","57.00","Research & Development","4112","Public Transport","26/02/2018"
"Wolverhampton City Council","http://opendatacommunities.org/id/metropolitan-district-council/wolverhampton","ARGOS RETAIL GROUP","2.79","Fleet Management","5310","Equipment - Purchase","26/02/2018"
"Wolverhampton City Council","http://opendatacommunities.org/id/metropolitan-district-council/wolverhampton","E01350800000000","40.00","Community Enablement","6011","Financial Assistance In Exceptional Circ","26/02/2018"
"Wolverhampton City Council","http://opendatacommunities.org/id/metropolitan-district-council/wolverhampton","Amazon EU","20.43","EIP Locality 5","5969","Equipment - Purchase","26/02/2018"
"Wolverhampton City Council","http://opendatacommunities.org/id/metropolitan-district-council/wolverhampton","Amazon EU","16.69","EIP Locality 5","5969","Equipment - Purchase","26/02/2018"
"Wolverhampton City Council","http://opendatacommunities.org/id/metropolitan-district-council/wolverhampton","Amazon EU","12.50","EIP Locality 5","5969","Equipment - Purchase","26/02/2018"
"Wolverhampton City Council","http://opendatacommunities.org/id/metropolitan-district-council/wolverhampton","Amazon UK Marketplace","17.90","EIP Locality 5","5942","Books","26/02/2018"
"Wolverhampton City Council","http://opendatacommunities.org/id/metropolitan-district-council/wolverhampton","CLINTONS 45","5.00","Delivery & OCE Development","5947","Equipment - Purchase","26/02/2018"
"Wolverhampton City Council","http://opendatacommunities.org/id/metropolitan-district-council/wolverhampton","DEBENHAMS","32.10","Mayoral Expenses","5311","Equipment - Purchase","26/02/2018"
"Wolverhampton City Council","http://opendatacommunities.org/id/metropolitan-district-council/wolverhampton","BOCONLINE.CO.UK","68.76","WV Active Marketing","5722","Equipment - Purchase","23/02/2018"
"Wolverhampton City Council","http://opendatacommunities.org/id/metropolitan-district-council/wolverhampton","NOTEMACHINE","150.00","Headstart Phase 3","6011","Financial Assistance In Exceptional Circ","23/02/2018"
"Wolverhampton City Council","http://opendatacommunities.org/id/metropolitan-district-council/wolverhampton","Trainline","82.50","Assistant Director - Public Health","4112","Public Transport","23/02/2018"
"Wolverhampton City Council","http://opendatacommunities.org/id/metropolitan-district-council/wolverhampton","WP-ZEN SOFTWARE LI","46.20","ICT Services","7372","Computing - Purchase of Software","23/02/2018"
"Wolverhampton City Council","http://opendatacommunities.org/id/metropolitan-district-council/wolverhampton","TESCO STORES 5397","20.00","EIP Locality 1","5411","Grant Payments","23/02/2018"
"Wolverhampton City Council","http://opendatacommunities.org/id/metropolitan-district-council/wolverhampton","TESCO STORES 5397","26.93","EIP Locality 1","5411","Grant Payments","23/02/2018"
"Wolverhampton City Council","http://opendatacommunities.org/id/metropolitan-district-council/wolverhampton","WEST MID TRAVEL","446.85","Community Enablement","4131","Public Transport","23/02/2018"
"Wolverhampton City Council","http://opendatacommunities.org/id/metropolitan-district-council/wolverhampton","Amazon Prime","7.99","Technical Support","5968","Subscriptions","23/02/2018"
"Wolverhampton City Council","http://opendatacommunities.org/id/metropolitan-district-council/wolverhampton","AMAZON SVCS EU-UK AMAZ","7.32","Global Budgets","5942","Books","23/02/2018"
"Wolverhampton City Council","http://opendatacommunities.org/id/metropolitan-district-council/wolverhampton","Amazon UK Marketplace","79.90","Global Budgets","5942","Equipment - Purchase","23/02/2018"
"Wolverhampton City Council","http://opendatacommunities.org/id/metropolitan-district-council/wolverhampton","FTPE WEBTIS 1","72.00","Education And Access","4112","Public Transport","23/02/2018"
"Wolverhampton City Council","http://opendatacommunities.org/id/metropolitan-district-council/wolverhampton","ASDA SUPERSTORE","96.25","LAC Transitions Team","5411","Client Allowances","23/02/2018"
"Wolverhampton City Council","http://opendatacommunities.org/id/metropolitan-district-council/wolverhampton","W M MORRISON PLC","11.22","Ernest Bold Court","5411","Provisions (Not for resale)","23/02/2018"
"Wolverhampton City Council","http://opendatacommunities.org/id/metropolitan-district-council/wolverhampton","Trainline","195.50","HOS Early Intervention","4112","Public Transport","23/02/2018"
"Wolverhampton City Council","http://opendatacommunities.org/id/metropolitan-district-council/wolverhampton","BEATSABAR MUSIC PROJEC","120.00","Youth Offending Team","5733","Equipment - Purchase","23/02/2018"
"Wolverhampton City Council","http://opendatacommunities.org/id/metropolitan-district-council/wolverhampton","TRAINLINE","-58.70","Mental Health Assessment & Care Mgmt","4112","Public Transport","23/02/2018"
"Wolverhampton City Council","http://opendatacommunities.org/id/metropolitan-district-council/wolverhampton","BOOKATABLE","25.00","Headstart - Young People Engagement","5812","Educ Trips, Holidays, Outings, Activity","23/02/2018"
"Wolverhampton City Council","http://opendatacommunities.org/id/metropolitan-district-council/wolverhampton","TESCO - Online Kitchen","23.75","Ernest Bold Court","5999","Fixtures and Fittings - Purchases","23/02/2018"
"Wolverhampton City Council","http://opendatacommunities.org/id/metropolitan-district-council/wolverhampton","WWW.CARESHOP.CO.UK","151.92","Ernest Bold Court","5999","Equipment - Purchase","23/02/2018"
"Wolverhampton City Council","http://opendatacommunities.org/id/metropolitan-district-council/wolverhampton","Amazon UK Marketplace","5.82","LAC Education Team (LACE)","5942","Books","23/02/2018"
"Wolverhampton City Council","http://opendatacommunities.org/id/metropolitan-district-council/wolverhampton","Amazon UK Marketplace","29.12","LAC Education Team (LACE)","5942","Books","23/02/2018"
"Wolverhampton City Council","http://opendatacommunities.org/id/metropolitan-district-council/wolverhampton","Trainline","61.20","LAC Transitions Team","4112","Client Allowances","23/02/2018"
"Wolverhampton City Council","http://opendatacommunities.org/id/metropolitan-district-council/wolverhampton","VIDEKONLINE.CO.UK","722.95","Civic Centre","5722","Equipment - Purchase","23/02/2018"
"Wolverhampton City Council","http://opendatacommunities.org/id/metropolitan-district-council/wolverhampton","EBUYER (UK) LTD","220.16","ICT Desktop Refresh","5722","Equipment - Purchase","23/02/2018"
"Wolverhampton City Council","http://opendatacommunities.org/id/metropolitan-district-council/wolverhampton","PRODUCT SUPPORT AG","124.00","Upper Pendeford Farm Childrens Home","5732","Equipment - Purchase","23/02/2018"
"Wolverhampton City Council","http://opendatacommunities.org/id/metropolitan-district-council/wolverhampton","BEATSABAR MUSIC PROJEC","120.00","Youth Offending Team","5733","Equipment - Purchase","23/02/2018"
"Wolverhampton City Council","http://opendatacommunities.org/id/metropolitan-district-council/wolverhampton","PAYPAL  RMACKDAKIN","99.99","EIP Locality 3","5999","Grant Payments","23/02/2018"
"Wolverhampton City Council","http://opendatacommunities.org/id/metropolitan-district-council/wolverhampton","LOYD 37 CHURCH STREET","200.00","EIP Locality 8","6011","Grant Payments","23/02/2018"
"Wolverhampton City Council","http://opendatacommunities.org/id/metropolitan-district-council/wolverhampton","ARGOS LTD","39.15","LAC Transitions Team","5310","Client Allowances","23/02/2018"
"Wolverhampton City Council","http://opendatacommunities.org/id/metropolitan-district-council/wolverhampton","TESCO STORES 5194","197.97","Towers Outdoor Education Centre","5411","Provisions (Not for resale)","23/02/2018"
"Wolverhampton City Council","http://opendatacommunities.org/id/metropolitan-district-council/wolverhampton","FUEL CARD SERVICES LTD","183.82","Towers Outdoor Education Centre","7399","Petrol","23/02/2018"
"Wolverhampton City Council","http://opendatacommunities.org/id/metropolitan-district-council/wolverhampton","000002200500000","250.00","CIN/CP Social Work Unit - Area 6","6011","No Recourse to Public Funds","23/02/2018"
"Wolverhampton City Council","http://opendatacommunities.org/id/metropolitan-district-council/wolverhampton","B&M RETAIL","22.99","Ernest Bold Court","5310","Equipment - Purchase","23/02/2018"
"Wolverhampton City Council","http://opendatacommunities.org/id/metropolitan-district-council/wolverhampton","COMPLETE CARE SHOP","135.20","Ernest Bold Court","5399","Fixtures and Fittings - Purchases","23/02/2018"
"Wolverhampton City Council","http://opendatacommunities.org/id/metropolitan-district-council/wolverhampton","ARGOS LTD","9.99","Community Enablement","5310","Equipment - Purchase","23/02/2018"
"Wolverhampton City Council","http://opendatacommunities.org/id/metropolitan-district-council/wolverhampton","GO CARZ","6.20","EIP Locality 5","4121","Client Transport","23/02/2018"
"Wolverhampton City Council","http://opendatacommunities.org/id/metropolitan-district-council/wolverhampton","GO CARZ","6.50","EIP Locality 5","4121","Client Transport","23/02/2018"
"Wolverhampton City Council","http://opendatacommunities.org/id/metropolitan-district-council/wolverhampton","Amazon EU","39.79","EIP Locality 5","5969","Equipment - Purchase","23/02/2018"
"Wolverhampton City Council","http://opendatacommunities.org/id/metropolitan-district-council/wolverhampton","GRO HM PASSPORT OFFICE","7.71","LAC Transitions Team","9399","Client Allowances","23/02/2018"
"Wolverhampton City Council","http://opendatacommunities.org/id/metropolitan-district-council/wolverhampton","TVLICENSING.CO.UK","147.00","LAC Transitions Team","7392","Client Allowances","22/02/2018"
"Wolverhampton City Council","http://opendatacommunities.org/id/metropolitan-district-council/wolverhampton","NOTEMACHINE","250.00","CIN/CP Social Work Unit - Area 6","6011","Financial Assistance In Exceptional Circ","22/02/2018"
"Wolverhampton City Council","http://opendatacommunities.org/id/metropolitan-district-council/wolverhampton","MAPLIN WOLVERHAMPT WV2","11.65","Fostering Team & Allowances","4812","Comms - Mobile Telephones","22/02/2018"
"Wolverhampton City Council","http://opendatacommunities.org/id/metropolitan-district-council/wolverhampton","AMAZON SVCS EU-UK AMAZ","18.99","Headstart - Learning Technologies Team","5942","Equipment - Purchase","22/02/2018"
"Wolverhampton City Council","http://opendatacommunities.org/id/metropolitan-district-council/wolverhampton","BOCONLINE.CO.UK","68.76","WV Active Marketing","5722","Equipment - Purchase","22/02/2018"
"Wolverhampton City Council","http://opendatacommunities.org/id/metropolitan-district-council/wolverhampton","AMAZON EU AMAZON.CO.UK","101.60","Headstart Hubs","5999","Computing - Consumables","22/02/2018"
"Wolverhampton City Council","http://opendatacommunities.org/id/metropolitan-district-council/wolverhampton","COSMO","42.30","Headstart - Young People Engagement","5812","Educ Trips, Holidays, Outings, Activity","22/02/2018"
"Wolverhampton City Council","http://opendatacommunities.org/id/metropolitan-district-council/wolverhampton","WWW.ARGOS.CO.UK","100.77","LAC Transitions Team","5310","Client Allowances","22/02/2018"
"Wolverhampton City Council","http://opendatacommunities.org/id/metropolitan-district-council/wolverhampton","Trainline","70.50","LAC Transitions Team","4112","Public Transport","22/02/2018"
"Wolverhampton City Council","http://opendatacommunities.org/id/metropolitan-district-council/wolverhampton","WWW.JCTLTD.CO.UK","191.80","Corporate Procurement Unit","5942","Books","22/02/2018"
"Wolverhampton City Council","http://opendatacommunities.org/id/metropolitan-district-council/wolverhampton","ASDA HOME SHOPPING","58.02","Upper Pendeford Farm Childrens Home","5411","Provisions (Not for resale)","22/02/2018"
"Wolverhampton City Council","http://opendatacommunities.org/id/metropolitan-district-council/wolverhampton","WILKO RETAIL LIMIT","11.25","Connexions Contract","5722","Stationery","22/02/2018"
"Wolverhampton City Council","http://opendatacommunities.org/id/metropolitan-district-council/wolverhampton","Amazon UK Marketplace","15.97","Global Budgets","5942","Books","22/02/2018"
"Wolverhampton City Council","http://opendatacommunities.org/id/metropolitan-district-council/wolverhampton","THE NEW BRIDGE GUEST H","50.00","CIN/CP Social Work Unit - Area 4","7011","Section 17","22/02/2018"
"Wolverhampton City Council","http://opendatacommunities.org/id/metropolitan-district-council/wolverhampton","PAYPAL  RTPI","220.00","Central Training","8398","Training Expenses","22/02/2018"
"Wolverhampton City Council","http://opendatacommunities.org/id/metropolitan-district-council/wolverhampton","ARGOS RETAIL GROUP","24.99","Ernest Bold Court","5310","Fixtures and Fittings - Purchases","22/02/2018"
"Wolverhampton City Council","http://opendatacommunities.org/id/metropolitan-district-council/wolverhampton","AWESOMEMERC","24.99","School Improvement","2741","Publications","22/02/2018"
"Wolverhampton City Council","http://opendatacommunities.org/id/metropolitan-district-council/wolverhampton","AWESOMEMERCHANDISE","416.67","School Improvement","2741","Publications","22/02/2018"
"Wolverhampton City Council","http://opendatacommunities.org/id/metropolitan-district-council/wolverhampton","AMAZON EU AMAZON.CO.UK","18.12","Ground Maintenance Overheads","5999","Stationery","22/02/2018"
"Wolverhampton City Council","http://opendatacommunities.org/id/metropolitan-district-council/wolverhampton","BAKER ROSS LTD","26.12","Education And Access","5970","Materials","21/02/2018"
"Wolverhampton City Council","http://opendatacommunities.org/id/metropolitan-district-council/wolverhampton","PREMIER INN","105.00","LAC Team","3811","Services - Supplies & Services to users","21/02/2018"
"Wolverhampton City Council","http://opendatacommunities.org/id/metropolitan-district-council/wolverhampton","GRO HM PASSPORT OFFICE","9.25","LAC Team","9399","Financial Assistance In Exceptional Circ","21/02/2018"
"Wolverhampton City Council","http://opendatacommunities.org/id/metropolitan-district-council/wolverhampton","LOYD 37 CHURCH STREET","250.00","Duke Street Bungalows","6011","Provisions (Not for resale)","21/02/2018"
"Wolverhampton City Council","http://opendatacommunities.org/id/metropolitan-district-council/wolverhampton","AMAZON SVCS EU-UK AMAZ","-62.93","SEN Early Years Team","5942","Equipment - Purchase","21/02/2018"
"Wolverhampton City Council","http://opendatacommunities.org/id/metropolitan-district-council/wolverhampton","WWW.MOTOR.ORG.UK","60.00","Central Training","5999","Training Expenses","21/02/2018"
"Wolverhampton City Council","http://opendatacommunities.org/id/metropolitan-district-council/wolverhampton","CLOCKING SYSTEM","50.00","Parks - Ranger Service","5085","Stationery","21/02/2018"
"Wolverhampton City Council","http://opendatacommunities.org/id/metropolitan-district-council/wolverhampton","Virgin Trains","119.50","Members Expenses","4112","Public Transport","21/02/2018"
"Wolverhampton City Council","http://opendatacommunities.org/id/metropolitan-district-council/wolverhampton","TICKETS08712200260","50.00","Information Governance Team","7922","Conference Expenses","21/02/2018"
"Wolverhampton City Council","http://opendatacommunities.org/id/metropolitan-district-council/wolverhampton","NOTEMACHINE","250.00","Childrens with Disabilities Team","6011","Financial Assistance In Exceptional Circ","21/02/2018"
"Wolverhampton City Council","http://opendatacommunities.org/id/metropolitan-district-council/wolverhampton","B&M RETAIL LTD","125.07","LAC Transitions Team","5310","Client Allowances","21/02/2018"
"Wolverhampton City Council","http://opendatacommunities.org/id/metropolitan-district-council/wolverhampton","B&M RETAIL LTD","104.55","LAC Transitions Team","5310","Client Allowances","21/02/2018"
"Wolverhampton City Council","http://opendatacommunities.org/id/metropolitan-district-council/wolverhampton","PENGUIN RANDOM HOUSE","-146.09","Literature Festival","5942","Books","21/02/2018"
"Wolverhampton City Council","http://opendatacommunities.org/id/metropolitan-district-council/wolverhampton","LONDON MIDLAND OB","7.20","Economic Development","4112","Public Transport","21/02/2018"
"Wolverhampton City Council","http://opendatacommunities.org/id/metropolitan-district-council/wolverhampton","WOLVERHAMPTON CC","2.50","Headstart Phase 3","7523","Parking Fees","21/02/2018"
"Wolverhampton City Council","http://opendatacommunities.org/id/metropolitan-district-council/wolverhampton","AMAZON SVCS EU-UK AMAZ","31.62","SWP - Infrastructure","5942","Equipment - Purchase","21/02/2018"
"Wolverhampton City Council","http://opendatacommunities.org/id/metropolitan-district-council/wolverhampton","Amazon UK Marketplace","5.99","EIP Locality 8","5942","Equipment - Hire","21/02/2018"
"Wolverhampton City Council","http://opendatacommunities.org/id/metropolitan-district-council/wolverhampton","Trainline","59.50","Safeguarding Admin Resource","4112","Public Transport","21/02/2018"
"Wolverhampton City Council","http://opendatacommunities.org/id/metropolitan-district-council/wolverhampton","NOTEMACHINE","100.00","Childrens with Disabilities Team","6011","No Recourse to Public Funds","21/02/2018"
"Wolverhampton City Council","http://opendatacommunities.org/id/metropolitan-district-council/wolverhampton","JOHNSONS","18.00","Service Wide","7210","Laundry Expenses","21/02/2018"
"Wolverhampton City Council","http://opendatacommunities.org/id/metropolitan-district-council/wolverhampton","ARGOS LTD","15.82","LAC Transitions Team","5310","Independant Living Allowance","21/02/2018"
"Wolverhampton City Council","http://opendatacommunities.org/id/metropolitan-district-council/wolverhampton","B&M RETAIL LTD","24.99","LAC Transitions Team","5310","Independant Living Allowance","21/02/2018"
"Wolverhampton City Council","http://opendatacommunities.org/id/metropolitan-district-council/wolverhampton","CT WOLVERHAMPTON","92.50","EIP Locality 1","8398","Grant Payments","21/02/2018"
"Wolverhampton City Council","http://opendatacommunities.org/id/metropolitan-district-council/wolverhampton","WWW.ARGOS.CO.UK","331.48","Learning Disabilities Management","5310","Equipment - Purchase","21/02/2018"
"Wolverhampton City Council","http://opendatacommunities.org/id/metropolitan-district-council/wolverhampton","Amazon UK Marketplace","4.05","Global Budgets","5942","Books","21/02/2018"
"Wolverhampton City Council","http://opendatacommunities.org/id/metropolitan-district-council/wolverhampton","E01577600000000","200.00","EIP Locality 3","6011","Grant Payments","21/02/2018"
"Wolverhampton City Council","http://opendatacommunities.org/id/metropolitan-district-council/wolverhampton","BARCLAYS BANK PLC","30.00","EIP Locality 3","6011","Grant Payments","21/02/2018"
"Wolverhampton City Council","http://opendatacommunities.org/id/metropolitan-district-council/wolverhampton","POUNDLAND LTD 1463","9.21","Education And Access","5310","Equipment - Purchase","21/02/2018"
"Wolverhampton City Council","http://opendatacommunities.org/id/metropolitan-district-council/wolverhampton","CBA TENABLE","1700.53","Strategic ICTS (ICT Serv Budget)","5817","Computing - Purchase of Software","21/02/2018"
"Wolverhampton City Council","http://opendatacommunities.org/id/metropolitan-district-council/wolverhampton","ASDA HOME SHOPPING","-5.29","Upper Pendeford Farm Childrens Home","5411","Provisions (Not for resale)","21/02/2018"
"Wolverhampton City Council","http://opendatacommunities.org/id/metropolitan-district-council/wolverhampton","ASDA HOME SHOPPING","159.71","Upper Pendeford Farm Childrens Home","5411","Provisions (Not for resale)","21/02/2018"
"Wolverhampton City Council","http://opendatacommunities.org/id/metropolitan-district-council/wolverhampton","Virgin Trains","8.30","LAC Team","4112","Public Transport","21/02/2018"
"Wolverhampton City Council","http://opendatacommunities.org/id/metropolitan-district-council/wolverhampton","Amazon UK Marketplace","10.43","Global Budgets","5942","Books","20/02/2018"
"Wolverhampton City Council","http://opendatacommunities.org/id/metropolitan-district-council/wolverhampton","AMAZON EU AMAZON.CO.UK","13.11","EIP Locality 3","5999","Grant Payments","20/02/2018"
"Wolverhampton City Council","http://opendatacommunities.org/id/metropolitan-district-council/wolverhampton","ASDA HOME SHOPPING","65.01","Ernest Bold Court","5411","Provisions (Not for resale)","20/02/2018"
"Wolverhampton City Council","http://opendatacommunities.org/id/metropolitan-district-council/wolverhampton","Amazon UK Marketplace","5.09","Children & Family Contact Services","5942","Equipment - Purchase","20/02/2018"
"Wolverhampton City Council","http://opendatacommunities.org/id/metropolitan-district-council/wolverhampton","Amazon UK Marketplace","316.66","Revenues","5942","Equipment - Purchase","20/02/2018"
"Wolverhampton City Council","http://opendatacommunities.org/id/metropolitan-district-council/wolverhampton","SAINSBURYS (2340)","150.00","Public Health Support Costs","5411","Educ Trips, Holidays, Outings, Activity","20/02/2018"
"Wolverhampton City Council","http://opendatacommunities.org/id/metropolitan-district-council/wolverhampton","Trainline","168.60","Service Director City Environment","4112","Public Transport","20/02/2018"
"Wolverhampton City Council","http://opendatacommunities.org/id/metropolitan-district-council/wolverhampton","Trainline","175.30","Service Director City Environment","4112","Public Transport","20/02/2018"
"Wolverhampton City Council","http://opendatacommunities.org/id/metropolitan-district-council/wolverhampton","PRO AUDIO CENTRE","219.00","Central Baths","5732","Equipment - Purchase","20/02/2018"
"Wolverhampton City Council","http://opendatacommunities.org/id/metropolitan-district-council/wolverhampton","PAYPAL  CHILDFAMILY","-27.50","Intensive Family Support Team","8299","Training Expenses","20/02/2018"
"Wolverhampton City Council","http://opendatacommunities.org/id/metropolitan-district-council/wolverhampton","PAYPAL  CHILDFAMILY","27.50","Intensive Family Support Team","8299","Training Expenses","20/02/2018"
"Wolverhampton City Council","http://opendatacommunities.org/id/metropolitan-district-council/wolverhampton","Amazon UK Marketplace","59.90","ICT Services","5942","Equipment - Purchase","20/02/2018"
"Wolverhampton City Council","http://opendatacommunities.org/id/metropolitan-district-council/wolverhampton","HOME BARGAINS","8.32","LAC Transitions Team","5251","Independant Living Allowance","20/02/2018"
"Wolverhampton City Council","http://opendatacommunities.org/id/metropolitan-district-council/wolverhampton","WOLVERHAMPTON CC","3.33","Headstart Phase 3","7523","Parking Fees","20/02/2018"
"Wolverhampton City Council","http://opendatacommunities.org/id/metropolitan-district-council/wolverhampton","NATWEST BANK","20.00","EIP Locality 1","6011","Grant Payments","20/02/2018"
"Wolverhampton City Council","http://opendatacommunities.org/id/metropolitan-district-council/wolverhampton","WEST COAST TRAINS","11.85","Transportation General","4112","Public Transport","20/02/2018"
"Wolverhampton City Council","http://opendatacommunities.org/id/metropolitan-district-council/wolverhampton","ARGOS LTD","133.32","LAC Transitions Team","5310","Client Allowances","20/02/2018"
"Wolverhampton City Council","http://opendatacommunities.org/id/metropolitan-district-council/wolverhampton","Trainline","22.65","Education Catering - General Overheads","4112","Public Transport","20/02/2018"
"Wolverhampton City Council","http://opendatacommunities.org/id/metropolitan-district-council/wolverhampton","ARGOS LTD","41.65","LAC Transitions Team","5310","Client Allowances","20/02/2018"
"Wolverhampton City Council","http://opendatacommunities.org/id/metropolitan-district-council/wolverhampton","ROYAL CARPETS","125.00","LAC Transitions Team","5713","Client Allowances","20/02/2018"
"Wolverhampton City Council","http://opendatacommunities.org/id/metropolitan-district-council/wolverhampton","WWW.CORAM.ORG.UK","19.92","Adoption and Residence Team & Allowances","8398","Services - Supplies & Services to users","20/02/2018"
"Wolverhampton City Council","http://opendatacommunities.org/id/metropolitan-district-council/wolverhampton","POST OFFICE COUNTER","11.03","Adoption and Residence Team & Allowances","9402","Comms - Postage","20/02/2018"
"Wolverhampton City Council","http://opendatacommunities.org/id/metropolitan-district-council/wolverhampton","AMAZON SVCS EU-UK AMAZ","9.98","Towers Outdoor Education Centre","5942","Fixtures and Fittings - Purchases","20/02/2018"
"Wolverhampton City Council","http://opendatacommunities.org/id/metropolitan-district-council/wolverhampton","FACEBK MGHLXFW9R2","22.12","Communications & Marketing - General","7311","Marketing \ Non-staff advertising","20/02/2018"
"Wolverhampton City Council","http://opendatacommunities.org/id/metropolitan-district-council/wolverhampton","FACEBK HGHLXFW9R2","477.88","Communications & Marketing - General","7311","Marketing \ Non-staff advertising","20/02/2018"
"Wolverhampton City Council","http://opendatacommunities.org/id/metropolitan-district-council/wolverhampton","AMFBOWLING.CO.UK","278.75","Headstart - Young People Engagement","7997","Educ Trips, Holidays, Outings, Activity","20/02/2018"
"Wolverhampton City Council","http://opendatacommunities.org/id/metropolitan-district-council/wolverhampton","Hotel on Booking.com","80.00","IMPACT","7011","Services - Supplies & Services to users","20/02/2018"
"Wolverhampton City Council","http://opendatacommunities.org/id/metropolitan-district-council/wolverhampton","GOOGLE  ADWS9680351324","416.67","Communications & Marketing - General","5968","Subscriptions","20/02/2018"
"Wolverhampton City Council","http://opendatacommunities.org/id/metropolitan-district-council/wolverhampton","AMAZON SVCS EU-UK AMAZ","38.80","SWP - Infrastructure","5942","Equipment - Purchase","20/02/2018"
"Wolverhampton City Council","http://opendatacommunities.org/id/metropolitan-district-council/wolverhampton","WWW.POSTURITE.CO.UK","124.94","EIP Locality 8","5021","Equipment - Purchase","20/02/2018"
"Wolverhampton City Council","http://opendatacommunities.org/id/metropolitan-district-council/wolverhampton","NATWEST BANK","30.00","EIP Locality 2","6011","Financial Assistance In Exceptional Circ","20/02/2018"
"Wolverhampton City Council","http://opendatacommunities.org/id/metropolitan-district-council/wolverhampton","ARGOS LTD","34.15","LAC Transitions Team","5310","Client Allowances","20/02/2018"
"Wolverhampton City Council","http://opendatacommunities.org/id/metropolitan-district-council/wolverhampton","ARGOS LTD","35.82","LAC Transitions Team","5310","Client Allowances","20/02/2018"
"Wolverhampton City Council","http://opendatacommunities.org/id/metropolitan-district-council/wolverhampton","Trainline","16.35","Education Business Partnership","4112","Public Transport","19/02/2018"
"Wolverhampton City Council","http://opendatacommunities.org/id/metropolitan-district-council/wolverhampton","ASDA SUPERSTORE","3.90","Mayoral Expenses","5411","Provisions (Not for resale)","19/02/2018"
"Wolverhampton City Council","http://opendatacommunities.org/id/metropolitan-district-council/wolverhampton","LOYD WEDNESFIELD WOLVE","200.00","EIP Locality 8","6011","Grant Payments","19/02/2018"
"Wolverhampton City Council","http://opendatacommunities.org/id/metropolitan-district-council/wolverhampton","REGISTRARS OFFICE","10.00","CIN/CP Social Work Unit - Area 2","8299","Training Expenses","19/02/2018"
"Wolverhampton City Council","http://opendatacommunities.org/id/metropolitan-district-council/wolverhampton","Virgin Trains","133.70","Delivery & OCE Development","4112","Public Transport","19/02/2018"
"Wolverhampton City Council","http://opendatacommunities.org/id/metropolitan-district-council/wolverhampton","THE WORKS","10.00","Education And Access","5310","Materials","19/02/2018"
"Wolverhampton City Council","http://opendatacommunities.org/id/metropolitan-district-council/wolverhampton","POUNDLAND LTD 1463","18.00","Education And Access","5310","Materials","19/02/2018"
"Wolverhampton City Council","http://opendatacommunities.org/id/metropolitan-district-council/wolverhampton","WM MORRISONS","4.21","Headstart Phase 3","5411","Provisions (Not for resale)","19/02/2018"
"Wolverhampton City Council","http://opendatacommunities.org/id/metropolitan-district-council/wolverhampton","AMAZON EU AMAZON.CO.UK","38.27","Headstart - Young People Engagement","5999","Materials","19/02/2018"
"Wolverhampton City Council","http://opendatacommunities.org/id/metropolitan-district-council/wolverhampton","PONY EXPRESS (UK) LTD","35.00","Mayoral Expenses","4215","Comms - Postage","19/02/2018"
"Wolverhampton City Council","http://opendatacommunities.org/id/metropolitan-district-council/wolverhampton","EDUCATION & TRAINI","85.00","Admin & Support","8220","Training Expenses","19/02/2018"
"Wolverhampton City Council","http://opendatacommunities.org/id/metropolitan-district-council/wolverhampton","WISEPOPS","36.01","City Direct","7372","Computing - Purchase of Software","19/02/2018"
"Wolverhampton City Council","http://opendatacommunities.org/id/metropolitan-district-council/wolverhampton","Amazon UK Marketplace","13.98","Youth Offending Team","5942","Equipment - Purchase","19/02/2018"
"Wolverhampton City Council","http://opendatacommunities.org/id/metropolitan-district-council/wolverhampton","EBUYER (UK) LTD","827.66","Strategic ICTS (ICT Serv Budget)","5722","Equipment - Purchase","19/02/2018"
"Wolverhampton City Council","http://opendatacommunities.org/id/metropolitan-district-council/wolverhampton","Virgin Trains","35.80","Strategic Financial Services","4112","Public Transport","19/02/2018"
"Wolverhampton City Council","http://opendatacommunities.org/id/metropolitan-district-council/wolverhampton","CPC","37.02","Central Baths","5065","Equipment - R & M","19/02/2018"
"Wolverhampton City Council","http://opendatacommunities.org/id/metropolitan-district-council/wolverhampton","WWW.ARGOS.CO.UK","9.12","LAC Transitions Team","5310","Client Allowances","19/02/2018"
"Wolverhampton City Council","http://opendatacommunities.org/id/metropolitan-district-council/wolverhampton","AMAZON SVCS EU-UK AMAZ","15.73","Community Enablement","5942","Materials","19/02/2018"
"Wolverhampton City Council","http://opendatacommunities.org/id/metropolitan-district-council/wolverhampton","Amazon UK Marketplace","34.10","SEN Sensory Inclusion","5942","Equipment - Purchase","19/02/2018"
"Wolverhampton City Council","http://opendatacommunities.org/id/metropolitan-district-council/wolverhampton","TIMPSON LTD","7.50","Blakenhall Commty & Healthy Living Ctr","7251","Equipment - Purchase","19/02/2018"
"Wolverhampton City Council","http://opendatacommunities.org/id/metropolitan-district-council/wolverhampton","Wix.com","186.26","Technical Support","5817","Computing - Purchase of Software","19/02/2018"
"Wolverhampton City Council","http://opendatacommunities.org/id/metropolitan-district-council/wolverhampton","AMAZON SVCS EU-UK AMAZ","149.95","Global Budgets","5942","Equipment - Purchase","19/02/2018"
"Wolverhampton City Council","http://opendatacommunities.org/id/metropolitan-district-council/wolverhampton","AMAZON SVCS EU-UK AMAZ","249.95","Global Budgets","5942","Equipment - Purchase","19/02/2018"
"Wolverhampton City Council","http://opendatacommunities.org/id/metropolitan-district-council/wolverhampton","Amazon UK Marketplace","2.49","Global Budgets","5942","Books","19/02/2018"
"Wolverhampton City Council","http://opendatacommunities.org/id/metropolitan-district-council/wolverhampton","Amazon UK Marketplace","10.00","Global Budgets","5942","Books","19/02/2018"
"Wolverhampton City Council","http://opendatacommunities.org/id/metropolitan-district-council/wolverhampton","Amazon UK Marketplace","11.94","Global Budgets","5942","Books","19/02/2018"
"Wolverhampton City Council","http://opendatacommunities.org/id/metropolitan-district-council/wolverhampton","ASDA HOME SHOPPING","62.11","Ernest Bold Court","5411","Provisions (Not for resale)","19/02/2018"
"Wolverhampton City Council","http://opendatacommunities.org/id/metropolitan-district-council/wolverhampton","WWW.MOTOR.ORG.UK","60.00","Central Training","5999","Training Expenses","19/02/2018"
"Wolverhampton City Council","http://opendatacommunities.org/id/metropolitan-district-council/wolverhampton","WWW.MOTOR.ORG.UK","60.00","Central Training","5999","Training Expenses","19/02/2018"
"Wolverhampton City Council","http://opendatacommunities.org/id/metropolitan-district-council/wolverhampton","WWW.MOTOR.ORG.UK","60.00","Central Training","5999","Training Expenses","19/02/2018"
"Wolverhampton City Council","http://opendatacommunities.org/id/metropolitan-district-council/wolverhampton","Trainline","199.50","CIN/CP Social Work Unit - Area 4","4112","Section 17","19/02/2018"
"Wolverhampton City Council","http://opendatacommunities.org/id/metropolitan-district-council/wolverhampton","AMAZON EU AMAZON.CO.UK","110.99","Music Support Team","5999","Equipment - R & M","19/02/2018"
"Wolverhampton City Council","http://opendatacommunities.org/id/metropolitan-district-council/wolverhampton","WWW.ICO.GOV.UK","35.00","Members Expenses","9399","Subscriptions","19/02/2018"
"Wolverhampton City Council","http://opendatacommunities.org/id/metropolitan-district-council/wolverhampton","GO CARZ","5.70","CIN/CP Social Work Unit - Area 5","4121","Section 17","19/02/2018"
"Wolverhampton City Council","http://opendatacommunities.org/id/metropolitan-district-council/wolverhampton","Amazon UK Marketplace","33.78","Specialist Support Service - North","5942","Stationery","19/02/2018"
"Wolverhampton City Council","http://opendatacommunities.org/id/metropolitan-district-council/wolverhampton","Trainline","292.50","CIN/CP Social Work Unit - Area 4","4112","Public Transport","19/02/2018"
"Wolverhampton City Council","http://opendatacommunities.org/id/metropolitan-district-council/wolverhampton","INSTITUTE OF CLERK","637.50","Capital Programme Team","8699","Staff Advertising Costs","16/02/2018"
"Wolverhampton City Council","http://opendatacommunities.org/id/metropolitan-district-council/wolverhampton","ARGOS RETAIL GROUP","64.71","EIP Locality 2","5310","Equipment - Purchase","16/02/2018"
"Wolverhampton City Council","http://opendatacommunities.org/id/metropolitan-district-council/wolverhampton","NOTEMACHINE","250.00","Childrens with Disabilities Team","6011","Financial Assistance In Exceptional Circ","16/02/2018"
"Wolverhampton City Council","http://opendatacommunities.org/id/metropolitan-district-council/wolverhampton","SP  PN PROFABRICS","9.00","Towers Outdoor Education Centre","5399","Fixtures and Fittings - Purchases","16/02/2018"
"Wolverhampton City Council","http://opendatacommunities.org/id/metropolitan-district-council/wolverhampton","Amazon UK Marketplace","19.98","Towers Outdoor Education Centre","5942","Fixtures and Fittings - Purchases","16/02/2018"
"Wolverhampton City Council","http://opendatacommunities.org/id/metropolitan-district-council/wolverhampton","Amazon UK Marketplace","8.40","Towers Outdoor Education Centre","5942","Fixtures and Fittings - Purchases","16/02/2018"
"Wolverhampton City Council","http://opendatacommunities.org/id/metropolitan-district-council/wolverhampton","W M MORRISON PLC","7.80","CIN/CP Social Work Unit - Area 6","5411","Comms - Postage","16/02/2018"
"Wolverhampton City Council","http://opendatacommunities.org/id/metropolitan-district-council/wolverhampton","MYPROTEIN.COM","36.70","Communications & Marketing - General","5399","Equipment - Purchase","16/02/2018"
"Wolverhampton City Council","http://opendatacommunities.org/id/metropolitan-district-council/wolverhampton","AMZ Printed","163.64","Headstart - Young People Engagement","4816","Stationery","16/02/2018"
"Wolverhampton City Council","http://opendatacommunities.org/id/metropolitan-district-council/wolverhampton","Trainline","61.95","Admin & Support","4112","Public Transport","16/02/2018"
"Wolverhampton City Council","http://opendatacommunities.org/id/metropolitan-district-council/wolverhampton","ASDA SUPERSTORE","4.30","City Direct","5411","Provisions (Not for resale)","16/02/2018"
"Wolverhampton City Council","http://opendatacommunities.org/id/metropolitan-district-council/wolverhampton","NAMESCO","2.99","City Direct","4816","Computing - Purchase of Software","16/02/2018"
"Wolverhampton City Council","http://opendatacommunities.org/id/metropolitan-district-council/wolverhampton","TROPHIESPLUSMEDALS.CO.","727.89","LAC Education Team (LACE)","5999","Equipment - Purchase","16/02/2018"
"Wolverhampton City Council","http://opendatacommunities.org/id/metropolitan-district-council/wolverhampton","Trainline","111.90","Families In Focus","4112","Public Transport","16/02/2018"
"Wolverhampton City Council","http://opendatacommunities.org/id/metropolitan-district-council/wolverhampton","B & Q 1243","18.78","Public Conveniences","5211","R&M - Departmental planned (external)","16/02/2018"
"Wolverhampton City Council","http://opendatacommunities.org/id/metropolitan-district-council/wolverhampton","VIDEKONLINE.CO.UK","1071.00","Strategic ICTS (ICT Serv Budget)","5722","Equipment - Purchase","16/02/2018"
"Wolverhampton City Council","http://opendatacommunities.org/id/metropolitan-district-council/wolverhampton","Klarna   We Sell Any T","-10.84","Central Baths","5251","Equipment - Purchase","16/02/2018"
"Wolverhampton City Council","http://opendatacommunities.org/id/metropolitan-district-council/wolverhampton","IZ  D & K TRADING (MID","25.00","Wolverhampton Indoor and Open Market","5999","Equipment - Purchase","16/02/2018"
"Wolverhampton City Council","http://opendatacommunities.org/id/metropolitan-district-council/wolverhampton","SCREWFIX DIRECT LT","14.72","Culwell Street Depot","5211","Materials","16/02/2018"
"Wolverhampton City Council","http://opendatacommunities.org/id/metropolitan-district-council/wolverhampton","TESCO STORES 5397","7.80","EIP Locality 1","5411","Comms - Postage","16/02/2018"
"Wolverhampton City Council","http://opendatacommunities.org/id/metropolitan-district-council/wolverhampton","E00783400000000","20.00","EIP Locality 1","6011","Equipment - Purchase","16/02/2018"
"Wolverhampton City Council","http://opendatacommunities.org/id/metropolitan-district-council/wolverhampton","Amazon UK Marketplace","3.50","SEN Sensory Inclusion","5942","Equipment - Purchase","16/02/2018"
"Wolverhampton City Council","http://opendatacommunities.org/id/metropolitan-district-council/wolverhampton","DUDLEY MBC  INTERN","280.00","EIP Locality 3","8999","Educ Trips, Holidays, Outings, Activity","16/02/2018"
"Wolverhampton City Council","http://opendatacommunities.org/id/metropolitan-district-council/wolverhampton","HTL DES CONGRES","527.32","Strategic Director Place","5969","Accommodation Costs","16/02/2018"
"Wolverhampton City Council","http://opendatacommunities.org/id/metropolitan-district-council/wolverhampton","POST OFFICE COUNTER","186.00","Safeguarding Admin Resource","9402","Comms - Postage","16/02/2018"
"Wolverhampton City Council","http://opendatacommunities.org/id/metropolitan-district-council/wolverhampton","MAJESTIC WINE WARE","42.00","Civic Centre Catering","5921","Equipment - Purchase","16/02/2018"
"Wolverhampton City Council","http://opendatacommunities.org/id/metropolitan-district-council/wolverhampton","MAJESTIC WINE WARE","169.80","Civic Centre Catering","5921","Equipment - Purchase","16/02/2018"
"Wolverhampton City Council","http://opendatacommunities.org/id/metropolitan-district-council/wolverhampton","WWW.WMCA.CO.UK","978.00","Legal Services","4112","Public Transport","16/02/2018"
"Wolverhampton City Council","http://opendatacommunities.org/id/metropolitan-district-council/wolverhampton","WWW.ARGOS.CO.UK","73.32","Passenger Transport - General","5310","Equipment - Purchase","16/02/2018"
"Wolverhampton City Council","http://opendatacommunities.org/id/metropolitan-district-council/wolverhampton","Trainline","19.05","CIN/CP Social Work Unit - Area 8","4112","Public Transport","16/02/2018"
"Wolverhampton City Council","http://opendatacommunities.org/id/metropolitan-district-council/wolverhampton","THE YORK HOTEL","250.00","CIN/CP Social Work Unit - Area 8","7011","Section 17","16/02/2018"
"Wolverhampton City Council","http://opendatacommunities.org/id/metropolitan-district-council/wolverhampton","Amazon UK Marketplace","38.33","EIP Locality 7","5942","Equipment - Purchase","16/02/2018"
"Wolverhampton City Council","http://opendatacommunities.org/id/metropolitan-district-council/wolverhampton","Amazon UK Marketplace","17.97","SEN Sensory Inclusion","5942","Equipment - Purchase","15/02/2018"
"Wolverhampton City Council","http://opendatacommunities.org/id/metropolitan-district-council/wolverhampton","Amazon UK Marketplace","5.97","SEN Sensory Inclusion","5942","Equipment - Purchase","15/02/2018"
"Wolverhampton City Council","http://opendatacommunities.org/id/metropolitan-district-council/wolverhampton","THE NEW BRIDGE GUEST H","41.67","CIN/CP Social Work Unit - Area 4","7011","Section 17","15/02/2018"
"Wolverhampton City Council","http://opendatacommunities.org/id/metropolitan-district-council/wolverhampton","POST OFFICE COUNTER","6.45","CIN/CP Social Work Unit - Area 7","9402","Section 17","15/02/2018"
"Wolverhampton City Council","http://opendatacommunities.org/id/metropolitan-district-council/wolverhampton","WWW.ADASS.ORG.UK","499.00","Workforce Development","8398","Training Expenses","15/02/2018"
"Wolverhampton City Council","http://opendatacommunities.org/id/metropolitan-district-council/wolverhampton","WWW.STERLINGEVENTS.CO.","55.00","Central Training","5999","Training Expenses","15/02/2018"
"Wolverhampton City Council","http://opendatacommunities.org/id/metropolitan-district-council/wolverhampton","Amazon UK Marketplace","12.41","Headstart - Young People Engagement","5942","Equipment - Purchase","15/02/2018"
"Wolverhampton City Council","http://opendatacommunities.org/id/metropolitan-district-council/wolverhampton","WWW.WMCA.CO.UK","56.50","IMPACT","9399","Services - Fees and Charges","15/02/2018"
"Wolverhampton City Council","http://opendatacommunities.org/id/metropolitan-district-council/wolverhampton","DVSA MOT COMP 2","205.00","Fleet Management","9399","Services - Fees and Charges","15/02/2018"
"Wolverhampton City Council","http://opendatacommunities.org/id/metropolitan-district-council/wolverhampton","GO CARZ","5.70","CIN/CP Social Work Unit - Area 5","4121","Section 17","15/02/2018"
"Wolverhampton City Council","http://opendatacommunities.org/id/metropolitan-district-council/wolverhampton","GO CARZ","6.10","CIN/CP Social Work Unit - Area 5","4121","Section 17","15/02/2018"
"Wolverhampton City Council","http://opendatacommunities.org/id/metropolitan-district-council/wolverhampton","THE NEW BRIDGE GUEST H","250.00","CIN/CP Social Work Unit - Area 4","7011","Section 17","15/02/2018"
"Wolverhampton City Council","http://opendatacommunities.org/id/metropolitan-district-council/wolverhampton","EB  TRUSTEE LEADERSHIP","75.00","Music Support Team","7399","Services - Professional Fees","15/02/2018"
"Wolverhampton City Council","http://opendatacommunities.org/id/metropolitan-district-council/wolverhampton","ROYAL BK OF SCOTLAND","200.00","Duke Street Bungalows","6011","Provisions (Not for resale)","15/02/2018"
"Wolverhampton City Council","http://opendatacommunities.org/id/metropolitan-district-council/wolverhampton","LOOP11.COM","148.40","City Direct","7372","Computing - Purchase of Software","15/02/2018"
"Wolverhampton City Council","http://opendatacommunities.org/id/metropolitan-district-council/wolverhampton","ITUNES.COM/BILL","2.07","LAC Education Team (LACE)","5735","Computing - Purchase of Software","15/02/2018"
"Wolverhampton City Council","http://opendatacommunities.org/id/metropolitan-district-council/wolverhampton","WILKO.COM","6.00","Youth Offending Team","5722","Equipment - Purchase","15/02/2018"
"Wolverhampton City Council","http://opendatacommunities.org/id/metropolitan-district-council/wolverhampton","WWW.ARGOS.CO.UK","50.70","EIP Locality 6","5310","Equipment - Purchase","15/02/2018"
"Wolverhampton City Council","http://opendatacommunities.org/id/metropolitan-district-council/wolverhampton","PLURALSIGHT","21.63","Strategic ICTS (ICT Serv Budget)","8299","Training Expenses","15/02/2018"
"Wolverhampton City Council","http://opendatacommunities.org/id/metropolitan-district-council/wolverhampton","Amazon UK Marketplace","3.80","Strategic ICTS (ICT Serv Budget)","5942","Books","15/02/2018"
"Wolverhampton City Council","http://opendatacommunities.org/id/metropolitan-district-council/wolverhampton","Virgin Trains","183.00","Strategic Financial Services","4112","Public Transport","15/02/2018"
"Wolverhampton City Council","http://opendatacommunities.org/id/metropolitan-district-council/wolverhampton","Klarna   We Sell Any T","10.84","Central Baths","5251","Equipment - Purchase","15/02/2018"
"Wolverhampton City Council","http://opendatacommunities.org/id/metropolitan-district-council/wolverhampton","ASDA HOME SHOPPING","-0.05","Upper Pendeford Farm Childrens Home","5411","Provisions (Not for resale)","15/02/2018"
"Wolverhampton City Council","http://opendatacommunities.org/id/metropolitan-district-council/wolverhampton","ASDA HOME SHOPPING","184.59","Upper Pendeford Farm Childrens Home","5411","Provisions (Not for resale)","15/02/2018"
"Wolverhampton City Council","http://opendatacommunities.org/id/metropolitan-district-council/wolverhampton","Amazon UK Marketplace","5.94","EIP Locality 7","5942","Equipment - Purchase","15/02/2018"
"Wolverhampton City Council","http://opendatacommunities.org/id/metropolitan-district-council/wolverhampton","Amazon UK Marketplace","3.29","EIP Locality 7","5942","Equipment - Purchase","15/02/2018"
"Wolverhampton City Council","http://opendatacommunities.org/id/metropolitan-district-council/wolverhampton","Virgin Trains","75.10","LAC Team","4112","Public Transport","15/02/2018"
"Wolverhampton City Council","http://opendatacommunities.org/id/metropolitan-district-council/wolverhampton","Virgin Trains","158.00","LAC Team","4112","Public Transport","15/02/2018"
"Wolverhampton City Council","http://opendatacommunities.org/id/metropolitan-district-council/wolverhampton","PARKIN FABRICS LIM","38.52","Creative Studies Delivery Area","5949","Equipment - Purchase","15/02/2018"
"Wolverhampton City Council","http://opendatacommunities.org/id/metropolitan-district-council/wolverhampton","STARBUCKS OSWESTRY","9.46","Headstart Phase 3","5499","Subsistence","15/02/2018"
"Wolverhampton City Council","http://opendatacommunities.org/id/metropolitan-district-council/wolverhampton","Amazon UK Marketplace","3.82","Archives","5942","Books","15/02/2018"
"Wolverhampton City Council","http://opendatacommunities.org/id/metropolitan-district-council/wolverhampton","Amazon UK Marketplace","108.67","Connexions Contract","5942","Stationery","15/02/2018"
"Wolverhampton City Council","http://opendatacommunities.org/id/metropolitan-district-council/wolverhampton","B & Q 1243","17.25","Culwell Street Depot","5211","Equipment - Purchase","15/02/2018"
"Wolverhampton City Council","http://opendatacommunities.org/id/metropolitan-district-council/wolverhampton","TESCO STORES 5397","2.12","EIP Locality 1","5411","Provisions (Not for resale)","15/02/2018"
"Wolverhampton City Council","http://opendatacommunities.org/id/metropolitan-district-council/wolverhampton","Amazon UK Marketplace","7.98","EIP Locality 1","5942","Equipment - Purchase","15/02/2018"
"Wolverhampton City Council","http://opendatacommunities.org/id/metropolitan-district-council/wolverhampton","Amazon UK Marketplace","1.66","EIP Locality 1","5942","Equipment - Purchase","15/02/2018"
"Wolverhampton City Council","http://opendatacommunities.org/id/metropolitan-district-council/wolverhampton","Amazon UK Marketplace","12.95","EIP Locality 1","5942","Equipment - Purchase","15/02/2018"
"Wolverhampton City Council","http://opendatacommunities.org/id/metropolitan-district-council/wolverhampton","Amazon UK Marketplace","1.33","EIP Locality 1","5942","Equipment - Purchase","15/02/2018"
"Wolverhampton City Council","http://opendatacommunities.org/id/metropolitan-district-council/wolverhampton","Amazon UK Marketplace","37.58","Members Expenses","5942","Equipment - Purchase","15/02/2018"
"Wolverhampton City Council","http://opendatacommunities.org/id/metropolitan-district-council/wolverhampton","BCC REGISTER OFFIC","-3.00","CIN/CP Social Work Unit - Area 6","9399","Section 17","15/02/2018"
"Wolverhampton City Council","http://opendatacommunities.org/id/metropolitan-district-council/wolverhampton","Virgin Trains","19.00","Economic Development","4112","Public Transport","15/02/2018"
"Wolverhampton City Council","http://opendatacommunities.org/id/metropolitan-district-council/wolverhampton","HOME BARGAINS WOLVERHA","60.78","Headstart - Young People Engagement","5251","Provisions (Not for resale)","15/02/2018"
"Wolverhampton City Council","http://opendatacommunities.org/id/metropolitan-district-council/wolverhampton","SPORTSDIRECT 231","135.80","Headstart - Young People Engagement","5941","Clothing / Uniforms","15/02/2018"
"Wolverhampton City Council","http://opendatacommunities.org/id/metropolitan-district-council/wolverhampton","WEST COAST TRAINS - EN","4.90","Economic Development","4112","Public Transport","14/02/2018"
"Wolverhampton City Council","http://opendatacommunities.org/id/metropolitan-district-council/wolverhampton","NATWEST BANK","60.00","Mental Health Assessment & Care Mgmt","6011","Financial Assistance In Exceptional Circ","14/02/2018"
"Wolverhampton City Council","http://opendatacommunities.org/id/metropolitan-district-council/wolverhampton","AMAZON EU AMAZON.CO.UK","16.66","Headstart - Young People Engagement","5999","Computing - Consumables","14/02/2018"
"Wolverhampton City Council","http://opendatacommunities.org/id/metropolitan-district-council/wolverhampton","AMAZON EU AMAZON.CO.UK","112.46","Headstart - Young People Engagement","5999","Computing - Consumables","14/02/2018"
"Wolverhampton City Council","http://opendatacommunities.org/id/metropolitan-district-council/wolverhampton","Amazon UK Marketplace","12.10","Headstart - Young People Engagement","5942","Equipment - Purchase","14/02/2018"
"Wolverhampton City Council","http://opendatacommunities.org/id/metropolitan-district-council/wolverhampton","WOLVERHAMPTON CC","1.25","IMPACT","7523","Car Allowances","14/02/2018"
"Wolverhampton City Council","http://opendatacommunities.org/id/metropolitan-district-council/wolverhampton","WWW.ARGOS.CO.UK","145.36","EIP Locality 6","5310","Equipment - Purchase","14/02/2018"
"Wolverhampton City Council","http://opendatacommunities.org/id/metropolitan-district-council/wolverhampton","AMAZON EU AMAZON.CO.UK","491.88","Strategic ICTS (ICT Serv Budget)","5999","Equipment - Purchase","14/02/2018"
"Wolverhampton City Council","http://opendatacommunities.org/id/metropolitan-district-council/wolverhampton","PAYPAL  ADTEK","322.26","Strategic ICTS (ICT Serv Budget)","4816","Computing - Purchase of Software","14/02/2018"
"Wolverhampton City Council","http://opendatacommunities.org/id/metropolitan-district-council/wolverhampton","EBUYER (UK) LTD","73.20","Strategic ICTS (ICT Serv Budget)","5722","Equipment - Purchase","14/02/2018"
"Wolverhampton City Council","http://opendatacommunities.org/id/metropolitan-district-council/wolverhampton","EBUYER (UK) LTD","164.48","Strategic ICTS (ICT Serv Budget)","5722","Equipment - Purchase","14/02/2018"
"Wolverhampton City Council","http://opendatacommunities.org/id/metropolitan-district-council/wolverhampton","Virgin Trains","194.70","Audit Services","4112","Public Transport","14/02/2018"
"Wolverhampton City Council","http://opendatacommunities.org/id/metropolitan-district-council/wolverhampton","Virgin Trains","96.70","Corporate Procurement Unit","4112","Public Transport","14/02/2018"
"Wolverhampton City Council","http://opendatacommunities.org/id/metropolitan-district-council/wolverhampton","ASDA HOME SHOPPING","3.00","Upper Pendeford Farm Childrens Home","5411","Provisions (Not for resale)","14/02/2018"
"Wolverhampton City Council","http://opendatacommunities.org/id/metropolitan-district-council/wolverhampton","W M MORRISONS.COM","91.22","Discretionary Fund","5411","Materials","14/02/2018"
"Wolverhampton City Council","http://opendatacommunities.org/id/metropolitan-district-council/wolverhampton","Trainline","-174.90","Service Director Disab & Mental Health","4112","Public Transport","14/02/2018"
"Wolverhampton City Council","http://opendatacommunities.org/id/metropolitan-district-council/wolverhampton","Trainline","177.50","Service Director Disab & Mental Health","4112","Public Transport","14/02/2018"
"Wolverhampton City Council","http://opendatacommunities.org/id/metropolitan-district-council/wolverhampton","WWW.ARGOS.CO.UK","28.94","The Maltings","5310","Equipment - Purchase","14/02/2018"
"Wolverhampton City Council","http://opendatacommunities.org/id/metropolitan-district-council/wolverhampton","Amazon EU","41.54","Language Studies Delivery Area","5969","Books","14/02/2018"
"Wolverhampton City Council","http://opendatacommunities.org/id/metropolitan-district-council/wolverhampton","Amazon EU","91.78","Language Studies Delivery Area","5969","Books","14/02/2018"
"Wolverhampton City Council","http://opendatacommunities.org/id/metropolitan-district-council/wolverhampton","Amazon EU","19.98","Language Studies Delivery Area","5969","Books","14/02/2018"
"Wolverhampton City Council","http://opendatacommunities.org/id/metropolitan-district-council/wolverhampton","Amazon UK Marketplace","157.32","Connexions Contract","5942","Stationery","14/02/2018"
"Wolverhampton City Council","http://opendatacommunities.org/id/metropolitan-district-council/wolverhampton","Amazon UK Marketplace","14.98","Connexions Contract","5942","Stationery","14/02/2018"
"Wolverhampton City Council","http://opendatacommunities.org/id/metropolitan-district-council/wolverhampton","PAYPAL  CELESTEMECH","210.00","Connexions Contract","5099","Stationery","14/02/2018"
"Wolverhampton City Council","http://opendatacommunities.org/id/metropolitan-district-council/wolverhampton","TIPPERS WOLVERHAMPTON","39.37","Culwell Street Depot","5072","Equipment - Purchase","14/02/2018"
"Wolverhampton City Council","http://opendatacommunities.org/id/metropolitan-district-council/wolverhampton","E01670600000000","20.00","EIP Locality 1","6011","Grant Payments","14/02/2018"
"Wolverhampton City Council","http://opendatacommunities.org/id/metropolitan-district-council/wolverhampton","AMAZON SVCS EU-UK AMAZ","35.30","EIP Locality 1","5942","Equipment - Purchase","14/02/2018"
"Wolverhampton City Council","http://opendatacommunities.org/id/metropolitan-district-council/wolverhampton","WEST MID TRAVEL","446.85","Community Enablement","4131","Public Transport","14/02/2018"
"Wolverhampton City Council","http://opendatacommunities.org/id/metropolitan-district-council/wolverhampton","RS COMPONENTS","31.70","SEN Sensory Inclusion","5065","Equipment - Purchase","14/02/2018"
"Wolverhampton City Council","http://opendatacommunities.org/id/metropolitan-district-council/wolverhampton","ASDA HOME SHOPPING","-2.00","Ernest Bold Court","5411","Provisions (Not for resale)","14/02/2018"
"Wolverhampton City Council","http://opendatacommunities.org/id/metropolitan-district-council/wolverhampton","ASDA HOME SHOPPING","71.61","Ernest Bold Court","5411","Provisions (Not for resale)","14/02/2018"
"Wolverhampton City Council","http://opendatacommunities.org/id/metropolitan-district-council/wolverhampton","Amazon UK Marketplace","18.99","Environmental Health - Pub Prot - Gen","5942","Equipment - Purchase","14/02/2018"
"Wolverhampton City Council","http://opendatacommunities.org/id/metropolitan-district-council/wolverhampton","Virgin Trains","68.90","Environmental Health - Pub Prot - Gen","4112","Equipment - Purchase","14/02/2018"
"Wolverhampton City Council","http://opendatacommunities.org/id/metropolitan-district-council/wolverhampton","AMAZON SVCS EU-UK AMAZ","58.25","Specialist Support Service - North","5942","Stationery","14/02/2018"
"Wolverhampton City Council","http://opendatacommunities.org/id/metropolitan-district-council/wolverhampton","DISCOVERY LEARNING","125.00","Central Training","7392","Training Expenses","14/02/2018"
"Wolverhampton City Council","http://opendatacommunities.org/id/metropolitan-district-council/wolverhampton","ARGOS RETAIL GROUP","24.99","Legal Services","5310","Equipment - Purchase","14/02/2018"
"Wolverhampton City Council","http://opendatacommunities.org/id/metropolitan-district-council/wolverhampton","Amazon UK Marketplace","8.32","EIP Locality 7","5942","Equipment - Purchase","14/02/2018"
"Wolverhampton City Council","http://opendatacommunities.org/id/metropolitan-district-council/wolverhampton","Amazon UK Marketplace","38.79","Children & Family Contact Services","5942","Equipment - Purchase","14/02/2018"
"Wolverhampton City Council","http://opendatacommunities.org/id/metropolitan-district-council/wolverhampton","AMAZON SVCS EU-UK AMAZ","16.93","SEN Early Years Team","5942","Equipment - Purchase","14/02/2018"
"Wolverhampton City Council","http://opendatacommunities.org/id/metropolitan-district-council/wolverhampton","Amazon EU","21.83","SEN Early Years Team","5969","Equipment - Purchase","14/02/2018"
"Wolverhampton City Council","http://opendatacommunities.org/id/metropolitan-district-council/wolverhampton","J VAN VLIET BIRMINGHAM","151.69","Creative Studies Delivery Area","5399","Materials","14/02/2018"
"Wolverhampton City Council","http://opendatacommunities.org/id/metropolitan-district-council/wolverhampton","ASDA SUPERSTORE","49.24","Street Lighting Maintenance","5411","Provisions (Not for resale)","14/02/2018"
"Wolverhampton City Council","http://opendatacommunities.org/id/metropolitan-district-council/wolverhampton","REGISTRARS OFFICE","14.00","CIN/CP Social Work Unit - Area 1","8299","Section 17","14/02/2018"
"Wolverhampton City Council","http://opendatacommunities.org/id/metropolitan-district-council/wolverhampton","Amazon UK Marketplace","26.00","EIP Locality 7","5942","Equipment - Purchase","14/02/2018"
"Wolverhampton City Council","http://opendatacommunities.org/id/metropolitan-district-council/wolverhampton","Amazon UK Marketplace","2.68","EIP Locality 7","5942","Equipment - Purchase","14/02/2018"
"Wolverhampton City Council","http://opendatacommunities.org/id/metropolitan-district-council/wolverhampton","TESCO STORES 5194","101.07","Towers Outdoor Education Centre","5411","Provisions (Not for resale)","14/02/2018"
"Wolverhampton City Council","http://opendatacommunities.org/id/metropolitan-district-council/wolverhampton","HARLECH FOODSERVICE LT","338.15","Towers Outdoor Education Centre","5422","Provisions (Not for resale)","14/02/2018"
"Wolverhampton City Council","http://opendatacommunities.org/id/metropolitan-district-council/wolverhampton","RICHARD WILLIAMS","40.10","Towers Outdoor Education Centre","5211","Fixtures and Fittings - Purchases","14/02/2018"
"Wolverhampton City Council","http://opendatacommunities.org/id/metropolitan-district-council/wolverhampton","C L JONES HEAD OFFICE","280.80","Towers Outdoor Education Centre","5211","Fixtures and Fittings - Purchases","14/02/2018"
"Wolverhampton City Council","http://opendatacommunities.org/id/metropolitan-district-council/wolverhampton","BARCLAYS BANK PLC","250.00","CIN/CP Social Work Unit - Area 6","6011","Financial Assistance In Exceptional Circ","14/02/2018"
"Wolverhampton City Council","http://opendatacommunities.org/id/metropolitan-district-council/wolverhampton","Trainline","58.50","Research & Development","4112","Public Transport","14/02/2018"
"Wolverhampton City Council","http://opendatacommunities.org/id/metropolitan-district-council/wolverhampton","WWW.ARGOS.CO.UK","103.28","LAC Transitions Team","5310","Client Allowances","13/02/2018"
"Wolverhampton City Council","http://opendatacommunities.org/id/metropolitan-district-council/wolverhampton","O E METCALFE","510.54","Towers Outdoor Education Centre","5499","Provisions (Not for resale)","13/02/2018"
"Wolverhampton City Council","http://opendatacommunities.org/id/metropolitan-district-council/wolverhampton","CO-OP GROUP 070228","2.97","Towers Outdoor Education Centre","5411","Provisions (Not for resale)","13/02/2018"
"Wolverhampton City Council","http://opendatacommunities.org/id/metropolitan-district-council/wolverhampton","WWW.BLASARFWYD.COM","230.97","Towers Outdoor Education Centre","5499","Provisions (Not for resale)","13/02/2018"
"Wolverhampton City Council","http://opendatacommunities.org/id/metropolitan-district-council/wolverhampton","FUEL CARD SERVICES LTD","316.67","Towers Outdoor Education Centre","7399","Petrol","13/02/2018"
"Wolverhampton City Council","http://opendatacommunities.org/id/metropolitan-district-council/wolverhampton","SPAR SIOP TANDDERWEN","363.00","Towers Outdoor Education Centre","5411","Provisions (Not for resale)","13/02/2018"
"Wolverhampton City Council","http://opendatacommunities.org/id/metropolitan-district-council/wolverhampton","CHEMSOL CYMRU LTD","37.50","Towers Outdoor Education Centre","5199","Fixtures and Fittings - Purchases","13/02/2018"
"Wolverhampton City Council","http://opendatacommunities.org/id/metropolitan-district-council/wolverhampton","HN NUTTALL LTD","667.57","Towers Outdoor Education Centre","5085","Provisions (Not for resale)","13/02/2018"
"Wolverhampton City Council","http://opendatacommunities.org/id/metropolitan-district-council/wolverhampton","LUL TICKET MACHINE","10.00","Research & Development","4112","Public Transport","13/02/2018"
"Wolverhampton City Council","http://opendatacommunities.org/id/metropolitan-district-council/wolverhampton","AMAZON EU AMAZON.CO.UK","33.32","Headstart - Young People Engagement","5999","Computing - Consumables","13/02/2018"
"Wolverhampton City Council","http://opendatacommunities.org/id/metropolitan-district-council/wolverhampton","Amazon UK Marketplace","14.42","Headstart Phase 3","5942","Subsistence","13/02/2018"
"Wolverhampton City Council","http://opendatacommunities.org/id/metropolitan-district-council/wolverhampton","THE MAKATON CHARIT","42.25","SEN Early Years Team","8299","Publications","13/02/2018"
"Wolverhampton City Council","http://opendatacommunities.org/id/metropolitan-district-council/wolverhampton","Amazon EU","24.56","SEN Early Years Team","5969","Equipment - Purchase","13/02/2018"
"Wolverhampton City Council","http://opendatacommunities.org/id/metropolitan-district-council/wolverhampton","REGISTRARS OFFICE","40.00","Adoption and Residence Team & Allowances","8299","Services - Fees and Charges","13/02/2018"
"Wolverhampton City Council","http://opendatacommunities.org/id/metropolitan-district-council/wolverhampton","PO LOW HILL 1592","250.00","EIP Locality 7","6011","Grant Payments","13/02/2018"
"Wolverhampton City Council","http://opendatacommunities.org/id/metropolitan-district-council/wolverhampton","Amazon UK Marketplace","2.74","SEN Sensory Inclusion","5942","Equipment - Purchase","13/02/2018"
"Wolverhampton City Council","http://opendatacommunities.org/id/metropolitan-district-council/wolverhampton","E01577600000000","100.00","EIP Locality 3","6011","Grant Payments","13/02/2018"
"Wolverhampton City Council","http://opendatacommunities.org/id/metropolitan-district-council/wolverhampton","Amazon Prime","7.99","Education And Access","5968","Subscriptions","13/02/2018"
"Wolverhampton City Council","http://opendatacommunities.org/id/metropolitan-district-council/wolverhampton","CO-OPERATIVE TRAVE","770.65","Leonardo Da Vinci Project","6051","Subsistence","13/02/2018"
"Wolverhampton City Council","http://opendatacommunities.org/id/metropolitan-district-council/wolverhampton","WWW.WMCA.CO.UK","132.00","CIN/CP Social Work Unit - Area 4","9399","Section 17","13/02/2018"
"Wolverhampton City Council","http://opendatacommunities.org/id/metropolitan-district-council/wolverhampton","Trainline","292.50","CIN/CP Social Work Unit - Area 4","4112","Public Transport","13/02/2018"
"Wolverhampton City Council","http://opendatacommunities.org/id/metropolitan-district-council/wolverhampton","LOYD WEDNESFIELD WOLVE","200.00","Duke Street Bungalows","6011","Provisions (Not for resale)","13/02/2018"
"Wolverhampton City Council","http://opendatacommunities.org/id/metropolitan-district-council/wolverhampton","Amazon UK Marketplace","44.41","Children & Family Contact Services","5942","Books","13/02/2018"
"Wolverhampton City Council","http://opendatacommunities.org/id/metropolitan-district-council/wolverhampton","Amazon UK Marketplace","11.32","Children & Family Contact Services","5942","Equipment - Purchase","13/02/2018"
"Wolverhampton City Council","http://opendatacommunities.org/id/metropolitan-district-council/wolverhampton","Amazon UK Marketplace","3.15","Children & Family Contact Services","5942","Equipment - Purchase","13/02/2018"
"Wolverhampton City Council","http://opendatacommunities.org/id/metropolitan-district-council/wolverhampton","Amazon UK Marketplace","7.49","Children & Family Contact Services","5942","Equipment - Purchase","13/02/2018"
"Wolverhampton City Council","http://opendatacommunities.org/id/metropolitan-district-council/wolverhampton","Amazon UK Marketplace","2.58","Children & Family Contact Services","5942","Equipment - Purchase","13/02/2018"
"Wolverhampton City Council","http://opendatacommunities.org/id/metropolitan-district-council/wolverhampton","SAINSBURYS PFS (1340)","1.67","Mayoral Expenses","5541","Vehicle Maintenance - Repairs","13/02/2018"
"Wolverhampton City Council","http://opendatacommunities.org/id/metropolitan-district-council/wolverhampton","Trainline","47.10","Admin & Support","4112","Public Transport","13/02/2018"
"Wolverhampton City Council","http://opendatacommunities.org/id/metropolitan-district-council/wolverhampton","B&M RETAIL","54.94","EIP Locality 2","5310","Equipment - Purchase","13/02/2018"
"Wolverhampton City Council","http://opendatacommunities.org/id/metropolitan-district-council/wolverhampton","Trainline","186.40","Service Director Disab & Mental Health","4112","Public Transport","13/02/2018"
"Wolverhampton City Council","http://opendatacommunities.org/id/metropolitan-district-council/wolverhampton","SCREWFIX DIRECT","88.01","Central Costs","5211","Materials","13/02/2018"
"Wolverhampton City Council","http://opendatacommunities.org/id/metropolitan-district-council/wolverhampton","Trainline","59.00","Art Gallery","4112","Public Transport","13/02/2018"
"Wolverhampton City Council","http://opendatacommunities.org/id/metropolitan-district-council/wolverhampton","STARBUCKS OSWESTRY","5.67","Headstart Phase 3","5499","Subsistence","13/02/2018"
"Wolverhampton City Council","http://opendatacommunities.org/id/metropolitan-district-council/wolverhampton","SPAR SIOP TANDDERWEN","5.95","Headstart Phase 3","5411","Subsistence","13/02/2018"
"Wolverhampton City Council","http://opendatacommunities.org/id/metropolitan-district-council/wolverhampton","CUMMINGS BROTHERS LOCK","17.50","Culwell Street Depot","7399","R&M - Departmental planned (external)","13/02/2018"
"Wolverhampton City Council","http://opendatacommunities.org/id/metropolitan-district-council/wolverhampton","COMPANIES HOUSE","15.00","Wholly Owned Company - Operations","9399","Services - Fees and Charges","13/02/2018"
"Wolverhampton City Council","http://opendatacommunities.org/id/metropolitan-district-council/wolverhampton","AMAZON SVCS EU-UK AMAZ","2.30","EIP Locality 1","5942","Equipment - Purchase","13/02/2018"
"Wolverhampton City Council","http://opendatacommunities.org/id/metropolitan-district-council/wolverhampton","Amazon UK Marketplace","1.99","SEN Sensory Inclusion","5942","Equipment - Purchase","13/02/2018"
"Wolverhampton City Council","http://opendatacommunities.org/id/metropolitan-district-council/wolverhampton","THE MAKATON CHARIT","297.19","SEN Early Years Team","8299","Publications","12/02/2018"
"Wolverhampton City Council","http://opendatacommunities.org/id/metropolitan-district-council/wolverhampton","AMAZON UK PRIME AMZN.C","7.99","Street Lighting Maintenance","5968","Subscriptions","12/02/2018"
"Wolverhampton City Council","http://opendatacommunities.org/id/metropolitan-district-council/wolverhampton","Amazon UK Marketplace","79.05","Music Support Team","5942","Equipment - Purchase","12/02/2018"
"Wolverhampton City Council","http://opendatacommunities.org/id/metropolitan-district-council/wolverhampton","Amazon EU","17.04","Parks - Ranger Service","5969","Equipment - Purchase","12/02/2018"
"Wolverhampton City Council","http://opendatacommunities.org/id/metropolitan-district-council/wolverhampton","THE RANGE","30.81","Duke Street Bungalows","5311","Equipment - Purchase","12/02/2018"
"Wolverhampton City Council","http://opendatacommunities.org/id/metropolitan-district-council/wolverhampton","GO CARZ","7.20","EIP Locality 5","4121","Client Transport","12/02/2018"
"Wolverhampton City Council","http://opendatacommunities.org/id/metropolitan-district-council/wolverhampton","PEACOCK STORES","8.00","Hospital Team","5331","Equipment - Purchase","12/02/2018"
"Wolverhampton City Council","http://opendatacommunities.org/id/metropolitan-district-council/wolverhampton","HOME BARGAINS","6.84","Hospital Team","5251","Equipment - Purchase","12/02/2018"
"Wolverhampton City Council","http://opendatacommunities.org/id/metropolitan-district-council/wolverhampton","Trainline","157.00","CIN/CP Social Work Unit - Area 3","4112","Public Transport","12/02/2018"
"Wolverhampton City Council","http://opendatacommunities.org/id/metropolitan-district-council/wolverhampton","APL /AbcCars","5.30","Northicote Farm","4121","Public Transport","12/02/2018"
"Wolverhampton City Council","http://opendatacommunities.org/id/metropolitan-district-council/wolverhampton","AMAZON EU AMAZON.CO.UK","23.74","Marketing of Exhibitions","5999","Equipment - Purchase","12/02/2018"
"Wolverhampton City Council","http://opendatacommunities.org/id/metropolitan-district-council/wolverhampton","ASDA SUPERSTORE","32.50","EIP Locality 3","5411","Grant Payments","12/02/2018"
"Wolverhampton City Council","http://opendatacommunities.org/id/metropolitan-district-council/wolverhampton","PREMIER INN","62.91","LAC Transitions Team","3811","Client Allowances","12/02/2018"
"Wolverhampton City Council","http://opendatacommunities.org/id/metropolitan-district-council/wolverhampton","TESCO DELIVERY SAVER2","3.49","Towers Outdoor Education Centre","5968","Provisions (Not for resale)","12/02/2018"
"Wolverhampton City Council","http://opendatacommunities.org/id/metropolitan-district-council/wolverhampton","BCC REGISTER OFFIC","15.00","CIN/CP Social Work Unit - Area 6","9399","Section 17","12/02/2018"
"Wolverhampton City Council","http://opendatacommunities.org/id/metropolitan-district-council/wolverhampton","PRIMARK","68.50","EIP Locality 4","5651","Grant Payments","12/02/2018"
"Wolverhampton City Council","http://opendatacommunities.org/id/metropolitan-district-council/wolverhampton","ASDA SUPERSTORE","5.00","Communications & Marketing - General","5411","Provisions (Not for resale)","12/02/2018"
"Wolverhampton City Council","http://opendatacommunities.org/id/metropolitan-district-council/wolverhampton","VWO.com","44.07","City Direct","7399","Equipment - Purchase","12/02/2018"
"Wolverhampton City Council","http://opendatacommunities.org/id/metropolitan-district-council/wolverhampton","WWW.ARGOS.CO.UK","-5.79","LAC Transitions Team","5310","Client Allowances","12/02/2018"
"Wolverhampton City Council","http://opendatacommunities.org/id/metropolitan-district-council/wolverhampton","WWW.ARGOS.CO.UK","-145.82","LAC Transitions Team","5310","Client Allowances","12/02/2018"
"Wolverhampton City Council","http://opendatacommunities.org/id/metropolitan-district-council/wolverhampton","Trainline","89.95","LAC Transitions Team","4112","Client Allowances","12/02/2018"
"Wolverhampton City Council","http://opendatacommunities.org/id/metropolitan-district-council/wolverhampton","HMCOURTS-SERVICE.G","20.00","LAC Transitions Team","9222","Client Allowances","12/02/2018"
"Wolverhampton City Council","http://opendatacommunities.org/id/metropolitan-district-council/wolverhampton","Trainline","41.90","Youth Offending Team","4112","Public Transport","12/02/2018"
"Wolverhampton City Council","http://opendatacommunities.org/id/metropolitan-district-council/wolverhampton","OUTLOOK DRAG & DROP TO","146.25","Risk Management & Insurance","5045","Computing - Purchase of Software","12/02/2018"
"Wolverhampton City Council","http://opendatacommunities.org/id/metropolitan-district-council/wolverhampton","PAYPAL  123REGLIMIT","11.99","Strategic ICTS (ICT Serv Budget)","4816","Computing - Purchase of Software","12/02/2018"
"Wolverhampton City Council","http://opendatacommunities.org/id/metropolitan-district-council/wolverhampton","WWW.INDESITCOMPANY","99.99","The Maltings","5065","Equipment - R & M","12/02/2018"
"Wolverhampton City Council","http://opendatacommunities.org/id/metropolitan-district-council/wolverhampton","Trainline","85.50","Research & Development","4112","Public Transport","12/02/2018"
"Wolverhampton City Council","http://opendatacommunities.org/id/metropolitan-district-council/wolverhampton","POUNDWORLD RETAIL","8.60","Director of Education","5310","Equipment - Purchase","12/02/2018"
"Wolverhampton City Council","http://opendatacommunities.org/id/metropolitan-district-council/wolverhampton","BOOKER LIMITED WOLVERH","13.55","Director of Education","5811","Catering","12/02/2018"
"Wolverhampton City Council","http://opendatacommunities.org/id/metropolitan-district-council/wolverhampton","BEATTIES","68.10","Director of Education","5311","Equipment - Purchase","12/02/2018"
"Wolverhampton City Council","http://opendatacommunities.org/id/metropolitan-district-council/wolverhampton","AMAZON EU AMAZON.CO.UK","19.52","Archives","5999","Books","12/02/2018"
"Wolverhampton City Council","http://opendatacommunities.org/id/metropolitan-district-council/wolverhampton","COMPANIES HOUSE","-15.00","Wholly Owned Company - Operations","9399","Services - Fees and Charges","12/02/2018"
"Wolverhampton City Council","http://opendatacommunities.org/id/metropolitan-district-council/wolverhampton","AMAZON SVCS EU-UK AMAZ","0.68","EIP Locality 1","5942","Equipment - Purchase","12/02/2018"
"Wolverhampton City Council","http://opendatacommunities.org/id/metropolitan-district-council/wolverhampton","WWW.IKEA.COM","71.70","EIP Locality 1","5712","Equipment - Purchase","12/02/2018"
"Wolverhampton City Council","http://opendatacommunities.org/id/metropolitan-district-council/wolverhampton","POST OFFICE COUNTER","58.75","LAC Team","9402","Comms - Postage","12/02/2018"
"Wolverhampton City Council","http://opendatacommunities.org/id/metropolitan-district-council/wolverhampton","Amazon UK Marketplace","26.80","SEN Sensory Inclusion","5942","Equipment - Purchase","12/02/2018"
"Wolverhampton City Council","http://opendatacommunities.org/id/metropolitan-district-council/wolverhampton","ORCHARD TOYS","13.50","SEN Sensory Inclusion","5969","Equipment - Purchase","12/02/2018"
"Wolverhampton City Council","http://opendatacommunities.org/id/metropolitan-district-council/wolverhampton","Amazon UK Marketplace","7.16","SEN Sensory Inclusion","5942","Equipment - Purchase","12/02/2018"
"Wolverhampton City Council","http://opendatacommunities.org/id/metropolitan-district-council/wolverhampton","Amazon UK Marketplace","14.98","SEN Sensory Inclusion","5942","Equipment - Purchase","12/02/2018"
"Wolverhampton City Council","http://opendatacommunities.org/id/metropolitan-district-council/wolverhampton","Amazon UK Marketplace","2.07","SEN Sensory Inclusion","5942","Equipment - Purchase","12/02/2018"
"Wolverhampton City Council","http://opendatacommunities.org/id/metropolitan-district-council/wolverhampton","Amazon UK Marketplace","6.45","SEN Sensory Inclusion","5942","Equipment - Purchase","12/02/2018"
"Wolverhampton City Council","http://opendatacommunities.org/id/metropolitan-district-council/wolverhampton","THE WORKS","2.00","Head of Strategic Commissioning � People","5310","Equipment - Purchase","12/02/2018"
"Wolverhampton City Council","http://opendatacommunities.org/id/metropolitan-district-council/wolverhampton","FSPRG.UK","5.05","Technical Support","5818","Subscriptions","12/02/2018"
"Wolverhampton City Council","http://opendatacommunities.org/id/metropolitan-district-council/wolverhampton","ITUNES.COM/BILL","41.50","Technical Support","5735","Computing - Purchase of Software","12/02/2018"
"Wolverhampton City Council","http://opendatacommunities.org/id/metropolitan-district-council/wolverhampton","EAST & WEST AID","133.33","EIP Locality 3","8398","Grant Payments","12/02/2018"
"Wolverhampton City Council","http://opendatacommunities.org/id/metropolitan-district-council/wolverhampton","E01577400000000","250.00","EIP Locality 3","6011","Grant Payments","12/02/2018"
"Wolverhampton City Council","http://opendatacommunities.org/id/metropolitan-district-council/wolverhampton","WICKES","10.82","Specialist Support Service - North","5211","Equipment - R & M","12/02/2018"
"Wolverhampton City Council","http://opendatacommunities.org/id/metropolitan-district-council/wolverhampton","ASDA HOME SHOPPING","65.75","Ernest Bold Court","5411","Provisions (Not for resale)","12/02/2018"
"Wolverhampton City Council","http://opendatacommunities.org/id/metropolitan-district-council/wolverhampton","HTL DES CONGRES","5495.53","Strategic Director Place","5969","Accommodation Costs","12/02/2018"
"Wolverhampton City Council","http://opendatacommunities.org/id/metropolitan-district-council/wolverhampton","Wolverhampton Fair Tra","127.44","Civic Centre Catering","5411","Provisions (Not for resale)","12/02/2018"
"Wolverhampton City Council","http://opendatacommunities.org/id/metropolitan-district-council/wolverhampton","WWW.NECCONTRACT.COM","285.00","PK10280-101 HRA Structural Works","2741","Publications","12/02/2018"
"Wolverhampton City Council","http://opendatacommunities.org/id/metropolitan-district-council/wolverhampton","Amazon UK Marketplace","182.97","Welfare Rights","5942","Equipment - Purchase","12/02/2018"
"Wolverhampton City Council","http://opendatacommunities.org/id/metropolitan-district-council/wolverhampton","B&M RETAIL","23.08","Ernest Bold Court","5310","Equipment - Purchase","12/02/2018"
"Wolverhampton City Council","http://opendatacommunities.org/id/metropolitan-district-council/wolverhampton","NEXT DIRECTORY","40.00","Ernest Bold Court","5651","Equipment - Purchase","12/02/2018"
"Wolverhampton City Council","http://opendatacommunities.org/id/metropolitan-district-council/wolverhampton","Amazon UK Marketplace","13.37","Children & Family Contact Services","5942","Equipment - Purchase","12/02/2018"
"Wolverhampton City Council","http://opendatacommunities.org/id/metropolitan-district-council/wolverhampton","Amazon UK Marketplace","9.31","Children & Family Contact Services","5942","Equipment - Purchase","12/02/2018"
"Wolverhampton City Council","http://opendatacommunities.org/id/metropolitan-district-council/wolverhampton","Trainline","89.45","LAC Transitions Team","4112","Client Allowances","09/02/2018"
"Wolverhampton City Council","http://opendatacommunities.org/id/metropolitan-district-council/wolverhampton","WWW.THEWORKS.CO.UK","24.00","EIP Locality 6","5310","Equipment - Purchase","09/02/2018"
"Wolverhampton City Council","http://opendatacommunities.org/id/metropolitan-district-council/wolverhampton","WWW.THEWORKS.CO.UK","96.00","EIP Locality 6","5310","Equipment - Purchase","09/02/2018"
"Wolverhampton City Council","http://opendatacommunities.org/id/metropolitan-district-council/wolverhampton","Hotel on Booking.com","83.99","Adoption and Residence Team & Allowances","7011","Services - Supplies & Services to users","09/02/2018"
"Wolverhampton City Council","http://opendatacommunities.org/id/metropolitan-district-council/wolverhampton","Amazon UK Marketplace","22.02","Strategic ICTS (ICT Serv Budget)","5942","Books","09/02/2018"
"Wolverhampton City Council","http://opendatacommunities.org/id/metropolitan-district-council/wolverhampton","COMMS EXP","182.35","Strategic ICTS (ICT Serv Budget)","5732","Equipment - Purchase","09/02/2018"
"Wolverhampton City Council","http://opendatacommunities.org/id/metropolitan-district-council/wolverhampton","WEST COAST TRAINS","7.80","Curatorial - Cultural Learning","4112","Subsistence","09/02/2018"
"Wolverhampton City Council","http://opendatacommunities.org/id/metropolitan-district-council/wolverhampton","AMAZON EU AMAZON.CO.UK","70.26","Headstart Phase 3","5999","Books","09/02/2018"
"Wolverhampton City Council","http://opendatacommunities.org/id/metropolitan-district-council/wolverhampton","CUMMINGS BROTHERS LOCK","10.00","Hickman Avenue Depot","7399","R&M - Departmental planned (external)","09/02/2018"
"Wolverhampton City Council","http://opendatacommunities.org/id/metropolitan-district-council/wolverhampton","TESCO STORES 5397","10.00","EIP Locality 1","5411","Grant Payments","09/02/2018"
"Wolverhampton City Council","http://opendatacommunities.org/id/metropolitan-district-council/wolverhampton","TWINKL LTD","84.90","SEN Sensory Inclusion","8699","Equipment - Purchase","09/02/2018"
"Wolverhampton City Council","http://opendatacommunities.org/id/metropolitan-district-council/wolverhampton","B & Q 1243","30.04","Learning Disabilities Management","5211","Equipment - R & M","09/02/2018"
"Wolverhampton City Council","http://opendatacommunities.org/id/metropolitan-district-council/wolverhampton","TURNER EPS","440.00","Civic Centre Repairs & Maintenance","8911","Services - Professional Fees","09/02/2018"
"Wolverhampton City Council","http://opendatacommunities.org/id/metropolitan-district-council/wolverhampton","WWW.NASEN.ORG.UK","272.09","SEN Early Years Team","8398","Publications","09/02/2018"
"Wolverhampton City Council","http://opendatacommunities.org/id/metropolitan-district-council/wolverhampton","BUYTHATMAG","79.00","Fleet Management","5192","Subscriptions","09/02/2018"
"Wolverhampton City Council","http://opendatacommunities.org/id/metropolitan-district-council/wolverhampton","Trainline","94.40","CIN/CP Social Work Unit - Area 4","4112","Section 17","09/02/2018"
"Wolverhampton City Council","http://opendatacommunities.org/id/metropolitan-district-council/wolverhampton","Amazon UK Marketplace","153.31","Street Lighting Maintenance","5942","Books","09/02/2018"
"Wolverhampton City Council","http://opendatacommunities.org/id/metropolitan-district-council/wolverhampton","Amazon UK Marketplace","4.80","Landscape","5942","Stationery","09/02/2018"
"Wolverhampton City Council","http://opendatacommunities.org/id/metropolitan-district-council/wolverhampton","Trainline","107.45","Music Support Team","4112","Services - Professional Fees","09/02/2018"
"Wolverhampton City Council","http://opendatacommunities.org/id/metropolitan-district-council/wolverhampton","THE YORK HOTEL","41.67","CIN/CP Social Work Unit - Area 8","7011","Section 17","09/02/2018"
"Wolverhampton City Council","http://opendatacommunities.org/id/metropolitan-district-council/wolverhampton","Amazon EU","10.76","Parks - Ranger Service","5969","Equipment - Purchase","09/02/2018"
"Wolverhampton City Council","http://opendatacommunities.org/id/metropolitan-district-council/wolverhampton","AMAZON SVCS EU-UK AMAZ","4.74","Parks - Ranger Service","5942","Equipment - Purchase","09/02/2018"
"Wolverhampton City Council","http://opendatacommunities.org/id/metropolitan-district-council/wolverhampton","B&M RETAIL LTD","34.10","Duke Street Bungalows","5310","Equipment - R & M","09/02/2018"
"Wolverhampton City Council","http://opendatacommunities.org/id/metropolitan-district-council/wolverhampton","HOME BARGAINS","5.82","Duke Street Bungalows","5251","Equipment - R & M","09/02/2018"
"Wolverhampton City Council","http://opendatacommunities.org/id/metropolitan-district-council/wolverhampton","COVE HOUSE","90.00","LAC Team","7011","Services - Supplies & Services to users","09/02/2018"
"Wolverhampton City Council","http://opendatacommunities.org/id/metropolitan-district-council/wolverhampton","GO CARZ","7.80","CIN/CP Social Work Unit - Area 5","4121","Section 17","09/02/2018"
"Wolverhampton City Council","http://opendatacommunities.org/id/metropolitan-district-council/wolverhampton","GO CARZ","8.10","CIN/CP Social Work Unit - Area 5","4121","Section 17","09/02/2018"
"Wolverhampton City Council","http://opendatacommunities.org/id/metropolitan-district-council/wolverhampton","GO CARZ","7.80","CIN/CP Social Work Unit - Area 5","4121","Section 17","09/02/2018"
"Wolverhampton City Council","http://opendatacommunities.org/id/metropolitan-district-council/wolverhampton","GO CARZ","8.10","CIN/CP Social Work Unit - Area 5","4121","Section 17","09/02/2018"
"Wolverhampton City Council","http://opendatacommunities.org/id/metropolitan-district-council/wolverhampton","GO CARZ","7.80","CIN/CP Social Work Unit - Area 5","4121","Section 17","09/02/2018"
"Wolverhampton City Council","http://opendatacommunities.org/id/metropolitan-district-council/wolverhampton","GO CARZ","8.10","CIN/CP Social Work Unit - Area 5","4121","Section 17","09/02/2018"
"Wolverhampton City Council","http://opendatacommunities.org/id/metropolitan-district-council/wolverhampton","GO CARZ","7.80","CIN/CP Social Work Unit - Area 5","4121","Section 17","09/02/2018"
"Wolverhampton City Council","http://opendatacommunities.org/id/metropolitan-district-council/wolverhampton","GO CARZ","8.10","CIN/CP Social Work Unit - Area 5","4121","Section 17","09/02/2018"
"Wolverhampton City Council","http://opendatacommunities.org/id/metropolitan-district-council/wolverhampton","GO CARZ","7.80","CIN/CP Social Work Unit - Area 5","4121","Section 17","09/02/2018"
"Wolverhampton City Council","http://opendatacommunities.org/id/metropolitan-district-council/wolverhampton","GO CARZ","8.10","CIN/CP Social Work Unit - Area 5","4121","Section 17","09/02/2018"
"Wolverhampton City Council","http://opendatacommunities.org/id/metropolitan-district-council/wolverhampton","GO CARZ","7.50","CIN/CP Social Work Unit - Area 5","4121","Section 17","09/02/2018"
"Wolverhampton City Council","http://opendatacommunities.org/id/metropolitan-district-council/wolverhampton","GO CARZ","7.50","CIN/CP Social Work Unit - Area 5","4121","Section 17","09/02/2018"
"Wolverhampton City Council","http://opendatacommunities.org/id/metropolitan-district-council/wolverhampton","000002200500000","250.00","CIN/CP Social Work Unit - Area 6","6011","Financial Assistance In Exceptional Circ","09/02/2018"
"Wolverhampton City Council","http://opendatacommunities.org/id/metropolitan-district-council/wolverhampton","Amazon UK Marketplace","191.91","Headstart - Young People Engagement","5942","Materials","09/02/2018"
"Wolverhampton City Council","http://opendatacommunities.org/id/metropolitan-district-council/wolverhampton","WOLVERHAMPTON CC","4.58","IMPACT","7523","Car Allowances","09/02/2018"
"Wolverhampton City Council","http://opendatacommunities.org/id/metropolitan-district-council/wolverhampton","AMAZON EU AMAZON.CO.UK","20.82","EIP Locality 8","5999","Grant Payments","08/02/2018"
"Wolverhampton City Council","http://opendatacommunities.org/id/metropolitan-district-council/wolverhampton","Amazon UK Marketplace","49.99","EIP Locality 8","5942","Grant Payments","08/02/2018"
"Wolverhampton City Council","http://opendatacommunities.org/id/metropolitan-district-council/wolverhampton","NOTEMACHINE","200.00","Childrens with Disabilities Team","6011","No Recourse to Public Funds","08/02/2018"
"Wolverhampton City Council","http://opendatacommunities.org/id/metropolitan-district-council/wolverhampton","CATERING REFECTORY CIT","4.90","Economic Development","8220","Training Expenses","08/02/2018"
"Wolverhampton City Council","http://opendatacommunities.org/id/metropolitan-district-council/wolverhampton","Amazon UK Marketplace","72.40","Headstart - Young People Engagement","5942","Materials","08/02/2018"
"Wolverhampton City Council","http://opendatacommunities.org/id/metropolitan-district-council/wolverhampton","Amazon UK Marketplace","24.12","Headstart - Young People Engagement","5942","Stationery","08/02/2018"
"Wolverhampton City Council","http://opendatacommunities.org/id/metropolitan-district-council/wolverhampton","Amazon UK Marketplace","54.27","Headstart - Young People Engagement","5942","Materials","08/02/2018"
"Wolverhampton City Council","http://opendatacommunities.org/id/metropolitan-district-council/wolverhampton","Amazon UK Marketplace","4.50","Headstart - Young People Engagement","5942","Materials","08/02/2018"
"Wolverhampton City Council","http://opendatacommunities.org/id/metropolitan-district-council/wolverhampton","WOLVERHAMPTON CC","4.58","IMPACT","7523","Car Allowances","08/02/2018"
"Wolverhampton City Council","http://opendatacommunities.org/id/metropolitan-district-council/wolverhampton","VDU01 HOTEL","315.00","IMPACT","7011","Services - Supplies & Services to users","08/02/2018"
"Wolverhampton City Council","http://opendatacommunities.org/id/metropolitan-district-council/wolverhampton","BRITISH BEAUTY ACADEMY","95.00","IMPACT","8299","Training Expenses","08/02/2018"
"Wolverhampton City Council","http://opendatacommunities.org/id/metropolitan-district-council/wolverhampton","Amazon UK Marketplace","15.63","Aldersley Leisure Village","5942","Stationery","08/02/2018"
"Wolverhampton City Council","http://opendatacommunities.org/id/metropolitan-district-council/wolverhampton","PAYPAL  JEVENTS GWE","40.00","Admin & Support","5734","Computing - Purchase of Software","08/02/2018"
"Wolverhampton City Council","http://opendatacommunities.org/id/metropolitan-district-council/wolverhampton","AMAZON EU AMAZON.CO.UK","46.55","LAC Team","5999","Equipment - Purchase","08/02/2018"
"Wolverhampton City Council","http://opendatacommunities.org/id/metropolitan-district-council/wolverhampton","AMAZON EU AMAZON.CO.UK","25.59","LAC Education Team (LACE)","5999","Equipment - Purchase","08/02/2018"
"Wolverhampton City Council","http://opendatacommunities.org/id/metropolitan-district-council/wolverhampton","WWW.ARGOS.CO.UK","149.98","LAC Transitions Team","5310","Client Allowances","08/02/2018"
"Wolverhampton City Council","http://opendatacommunities.org/id/metropolitan-district-council/wolverhampton","Amazon UK Marketplace","158.63","Strategic ICTS (ICT Serv Budget)","5942","Computing - Purchase of Hardware","08/02/2018"
"Wolverhampton City Council","http://opendatacommunities.org/id/metropolitan-district-council/wolverhampton","Amazon UK Marketplace","382.73","Strategic ICTS (ICT Serv Budget)","5942","Books","08/02/2018"
"Wolverhampton City Council","http://opendatacommunities.org/id/metropolitan-district-council/wolverhampton","Amazon UK Marketplace","203.08","Strategic ICTS (ICT Serv Budget)","5942","Books","08/02/2018"
"Wolverhampton City Council","http://opendatacommunities.org/id/metropolitan-district-council/wolverhampton","BLS SHAREGATE","3557.52","Strategic ICTS (ICT Serv Budget)","7372","Computing - Purchase of Software","08/02/2018"
"Wolverhampton City Council","http://opendatacommunities.org/id/metropolitan-district-council/wolverhampton","EBUYER (UK) LTD","340.87","Strategic ICTS (ICT Serv Budget)","5722","Equipment - Purchase","08/02/2018"
"Wolverhampton City Council","http://opendatacommunities.org/id/metropolitan-district-council/wolverhampton","POST OFFICE COUNTER","32.50","Intensive Family Support Team","9402","Comms - Postage","08/02/2018"
"Wolverhampton City Council","http://opendatacommunities.org/id/metropolitan-district-council/wolverhampton","PEARSON ED LTD","150.00","Foundation Studies","8299","Books","08/02/2018"
"Wolverhampton City Council","http://opendatacommunities.org/id/metropolitan-district-council/wolverhampton","AMAZON EU AMAZON.CO.UK","31.87","Headstart Phase 3","5999","Books","08/02/2018"
"Wolverhampton City Council","http://opendatacommunities.org/id/metropolitan-district-council/wolverhampton","Amazon UK Marketplace","27.07","Headstart Phase 3","5942","Computing - Consumables","08/02/2018"
"Wolverhampton City Council","http://opendatacommunities.org/id/metropolitan-district-council/wolverhampton","NATWEST BANK","20.00","Ernest Bold Court","6011","Services - Supplies & Services to users","08/02/2018"
"Wolverhampton City Council","http://opendatacommunities.org/id/metropolitan-district-council/wolverhampton","WWW.PMGLTD.CO.UK","346.50","Private Sector Housing","7399","Training Expenses","08/02/2018"
"Wolverhampton City Council","http://opendatacommunities.org/id/metropolitan-district-council/wolverhampton","WWW.WESTMINSTER-BRIEFI","245.00","Private Sector Housing","8244","Training Expenses","08/02/2018"
"Wolverhampton City Council","http://opendatacommunities.org/id/metropolitan-district-council/wolverhampton","AMAZON SVCS EU-UK AMAZ","13.98","EIP Locality 1","5942","Equipment - Purchase","08/02/2018"
"Wolverhampton City Council","http://opendatacommunities.org/id/metropolitan-district-council/wolverhampton","Amazon UK Marketplace","37.74","EIP Locality 1","5942","Equipment - Purchase","08/02/2018"
"Wolverhampton City Council","http://opendatacommunities.org/id/metropolitan-district-council/wolverhampton","WWW.ARGOS.CO.UK","405.77","Learning Disabilities Management","5310","Equipment - Purchase","08/02/2018"
"Wolverhampton City Council","http://opendatacommunities.org/id/metropolitan-district-council/wolverhampton","Amazon EU","174.95","Education Data Services","5969","Equipment - Purchase","08/02/2018"
"Wolverhampton City Council","http://opendatacommunities.org/id/metropolitan-district-council/wolverhampton","EAST & WEST AID","95.83","EIP Locality 3","8398","Grant Payments","08/02/2018"
"Wolverhampton City Council","http://opendatacommunities.org/id/metropolitan-district-council/wolverhampton","BLOOMSBURY THEATRE","35.00","Education And Access","8220","Training Expenses","08/02/2018"
"Wolverhampton City Council","http://opendatacommunities.org/id/metropolitan-district-council/wolverhampton","PAYPAL  NEEDFLYERS","337.50","Education And Access","7311","Equipment - Purchase","08/02/2018"
"Wolverhampton City Council","http://opendatacommunities.org/id/metropolitan-district-council/wolverhampton","PAYPAL  NEEDFLYERS","491.93","Education And Access","7311","Equipment - Purchase","08/02/2018"
"Wolverhampton City Council","http://opendatacommunities.org/id/metropolitan-district-council/wolverhampton","PAYPAL  NEEDFLYERS","520.83","Education And Access","7311","Equipment - Purchase","08/02/2018"
"Wolverhampton City Council","http://opendatacommunities.org/id/metropolitan-district-council/wolverhampton","GO CARZ","7.20","CIN/CP Social Work Unit - Area 5","4121","Section 17","08/02/2018"
"Wolverhampton City Council","http://opendatacommunities.org/id/metropolitan-district-council/wolverhampton","GO CARZ","7.50","CIN/CP Social Work Unit - Area 5","4121","Section 17","08/02/2018"
"Wolverhampton City Council","http://opendatacommunities.org/id/metropolitan-district-council/wolverhampton","Trainline","-66.50","CIN/CP Social Work Unit - Area 4","4112","Section 17","08/02/2018"
"Wolverhampton City Council","http://opendatacommunities.org/id/metropolitan-district-council/wolverhampton","Trainline","32.00","Music Support Team","4112","Services - Professional Fees","08/02/2018"
"Wolverhampton City Council","http://opendatacommunities.org/id/metropolitan-district-council/wolverhampton","Amazon UK Marketplace","61.58","Music Support Team","5942","Equipment - Purchase","08/02/2018"
"Wolverhampton City Council","http://opendatacommunities.org/id/metropolitan-district-council/wolverhampton","AMAZON SVCS EU-UK AMAZ","3.41","Parks - Ranger Service","5942","Equipment - Purchase","08/02/2018"
"Wolverhampton City Council","http://opendatacommunities.org/id/metropolitan-district-council/wolverhampton","TFM FARM & COUNTRY SUP","96.53","Northicote Farm","5399","Materials","08/02/2018"
"Wolverhampton City Council","http://opendatacommunities.org/id/metropolitan-district-council/wolverhampton","WWW.ARGOS.CO.UK","84.95","EIP Locality 3","5310","Grant Payments","07/02/2018"
"Wolverhampton City Council","http://opendatacommunities.org/id/metropolitan-district-council/wolverhampton","THE POST OFFICE","55.75","LAC Team","9402","Financial Assistance In Exceptional Circ","07/02/2018"
"Wolverhampton City Council","http://opendatacommunities.org/id/metropolitan-district-council/wolverhampton","BLACK COUNTRY CHAMBER","12.00","Economic Development","7399","Equipment - Purchase","07/02/2018"
"Wolverhampton City Council","http://opendatacommunities.org/id/metropolitan-district-council/wolverhampton","AMAZON EU AMAZON.CO.UK","37.49","Environmental Health - Pub Prot - Gen","5999","Equipment - Purchase","07/02/2018"
"Wolverhampton City Council","http://opendatacommunities.org/id/metropolitan-district-council/wolverhampton","OYSTER ISSUE WEB","25.00","Strategic Director Place","4112","Public Transport","07/02/2018"
"Wolverhampton City Council","http://opendatacommunities.org/id/metropolitan-district-council/wolverhampton","Trainline","85.50","CIN/CP Social Work Unit - Area 4","4112","Section 17","07/02/2018"
"Wolverhampton City Council","http://opendatacommunities.org/id/metropolitan-district-council/wolverhampton","STAFFORDSHIRE COUNTY C","15.00","Workforce Development","9399","Training Expenses","07/02/2018"
"Wolverhampton City Council","http://opendatacommunities.org/id/metropolitan-district-council/wolverhampton","J VAN VLIET BIRMINGHAM","82.32","Creative Studies Delivery Area","5399","Materials","07/02/2018"
"Wolverhampton City Council","http://opendatacommunities.org/id/metropolitan-district-council/wolverhampton","J VAN VLIET BIRMINGHAM","69.53","Creative Studies Delivery Area","5399","Materials for resale","07/02/2018"
"Wolverhampton City Council","http://opendatacommunities.org/id/metropolitan-district-council/wolverhampton","WESTMINSTER FORUM","210.00","School Improvement","7392","Services - Consultants","07/02/2018"
"Wolverhampton City Council","http://opendatacommunities.org/id/metropolitan-district-council/wolverhampton","Trainline","189.70","Inclusion Support","4112","Public Transport","07/02/2018"
"Wolverhampton City Council","http://opendatacommunities.org/id/metropolitan-district-council/wolverhampton","ASDA SUPERSTORE","6.58","CIN/CP Social Work Unit - Area 5","5411","No Recourse to Public Funds","07/02/2018"
"Wolverhampton City Council","http://opendatacommunities.org/id/metropolitan-district-council/wolverhampton","ASDA SUPERSTORE","13.17","CIN/CP Social Work Unit - Area 5","5411","No Recourse to Public Funds","07/02/2018"
"Wolverhampton City Council","http://opendatacommunities.org/id/metropolitan-district-council/wolverhampton","ASDA SUPERSTORE","15.00","CIN/CP Social Work Unit - Area 5","5411","No Recourse to Public Funds","07/02/2018"
"Wolverhampton City Council","http://opendatacommunities.org/id/metropolitan-district-council/wolverhampton","ASDA SUPERSTORE","15.30","CIN/CP Social Work Unit - Area 5","5411","No Recourse to Public Funds","07/02/2018"
"Wolverhampton City Council","http://opendatacommunities.org/id/metropolitan-district-council/wolverhampton","HOME BARGAINS WOLVERHA","64.95","Parks - Ranger Service","5251","Equipment - Purchase","07/02/2018"
"Wolverhampton City Council","http://opendatacommunities.org/id/metropolitan-district-council/wolverhampton","AMAZON EU AMAZON.CO.UK","28.32","EIP Locality 8","5999","Grant Payments","07/02/2018"
"Wolverhampton City Council","http://opendatacommunities.org/id/metropolitan-district-council/wolverhampton","LOYD WEDNESFIELD WOLVE","200.00","EIP Locality 8","6011","Grant Payments","07/02/2018"
"Wolverhampton City Council","http://opendatacommunities.org/id/metropolitan-district-council/wolverhampton","CURRYS ONLINE","-124.17","LAC Transitions Team","5732","Client Allowances","07/02/2018"
"Wolverhampton City Council","http://opendatacommunities.org/id/metropolitan-district-council/wolverhampton","MACMILLAN DISTRIBUTION","-90.91","Literature Festival","2741","Publications","07/02/2018"
"Wolverhampton City Council","http://opendatacommunities.org/id/metropolitan-district-council/wolverhampton","TESCO STORES 5194","79.15","Towers Outdoor Education Centre","5411","Provisions (Not for resale)","07/02/2018"
"Wolverhampton City Council","http://opendatacommunities.org/id/metropolitan-district-council/wolverhampton","BAKER ROSS LTD","5.93","Education And Access","5970","Materials","07/02/2018"
"Wolverhampton City Council","http://opendatacommunities.org/id/metropolitan-district-council/wolverhampton","Amazon UK Marketplace","19.13","The Clangers & TV Puppets","5942","Materials","07/02/2018"
"Wolverhampton City Council","http://opendatacommunities.org/id/metropolitan-district-council/wolverhampton","Amazon UK Marketplace","3.36","The Clangers & TV Puppets","5942","Books","07/02/2018"
"Wolverhampton City Council","http://opendatacommunities.org/id/metropolitan-district-council/wolverhampton","Virgin Trains","58.00","Contemporary Gallery","4112","Public Transport","07/02/2018"
"Wolverhampton City Council","http://opendatacommunities.org/id/metropolitan-district-council/wolverhampton","WEST COAST TRAINS - EN","7.20","Economic Development","4112","Public Transport","07/02/2018"
"Wolverhampton City Council","http://opendatacommunities.org/id/metropolitan-district-council/wolverhampton","PP FAMILYLINKS","64.58","Fostering Team & Allowances","8398","Services - Supplies & Services to users","07/02/2018"
"Wolverhampton City Council","http://opendatacommunities.org/id/metropolitan-district-council/wolverhampton","WWW.GOOUTDOORS.CO","165.00","Headstart - Young People Engagement","5691","Clothing / Uniforms","07/02/2018"
"Wolverhampton City Council","http://opendatacommunities.org/id/metropolitan-district-council/wolverhampton","SPECSAVERSEVOUGB-","923.62","HR Advice","8043","Services - Professional Fees","07/02/2018"
"Wolverhampton City Council","http://opendatacommunities.org/id/metropolitan-district-council/wolverhampton","Trainline","17.79","LAC Education Team (LACE)","4112","Public Transport","07/02/2018"
"Wolverhampton City Council","http://opendatacommunities.org/id/metropolitan-district-council/wolverhampton","B&M RETAIL","28.45","LAC Transitions Team","5310","Client Allowances","07/02/2018"
"Wolverhampton City Council","http://opendatacommunities.org/id/metropolitan-district-council/wolverhampton","HOME BARGAINS","27.49","LAC Transitions Team","5251","Client Allowances","07/02/2018"
"Wolverhampton City Council","http://opendatacommunities.org/id/metropolitan-district-council/wolverhampton","CT WOLVERHAMPTON","60.00","LAC Transitions Team","8398","Client Allowances","07/02/2018"
"Wolverhampton City Council","http://opendatacommunities.org/id/metropolitan-district-council/wolverhampton","Amazon UK Marketplace","9.11","LAC Transitions Team","5942","Client Allowances","07/02/2018"
"Wolverhampton City Council","http://opendatacommunities.org/id/metropolitan-district-council/wolverhampton","Virgintrains.co.uk","-184.00","Intensive Family Support Team","4112","Public Transport","07/02/2018"
"Wolverhampton City Council","http://opendatacommunities.org/id/metropolitan-district-council/wolverhampton","PREMIER INN","330.00","Intensive Family Support Team","3811","Services - Supplies & Services to users","07/02/2018"
"Wolverhampton City Council","http://opendatacommunities.org/id/metropolitan-district-council/wolverhampton","W M MORRISONS.COM","61.44","Discretionary Fund","5411","Materials","07/02/2018"
"Wolverhampton City Council","http://opendatacommunities.org/id/metropolitan-district-council/wolverhampton","ASDA SUPERSTORE","14.96","EIP Locality 5","5411","Provisions (Not for resale)","07/02/2018"
"Wolverhampton City Council","http://opendatacommunities.org/id/metropolitan-district-council/wolverhampton","ASDA SUPERSTORE","16.00","EIP Locality 5","5411","Grant Payments","07/02/2018"
"Wolverhampton City Council","http://opendatacommunities.org/id/metropolitan-district-council/wolverhampton","Amazon UK Marketplace","9.02","Headstart Phase 3","5942","Books","07/02/2018"
"Wolverhampton City Council","http://opendatacommunities.org/id/metropolitan-district-council/wolverhampton","JAMES LISTER & SONS LT","74.63","Culwell Street Depot","5085","Equipment - Purchase","07/02/2018"
"Wolverhampton City Council","http://opendatacommunities.org/id/metropolitan-district-council/wolverhampton","FOOD SAFETY DIRECT LTD","17.47","Private Sector Housing","5999","Equipment - Purchase","07/02/2018"
"Wolverhampton City Council","http://opendatacommunities.org/id/metropolitan-district-council/wolverhampton","COMPANIES HOUSE","15.00","Wholly Owned Company - Operations","9399","Services - Fees and Charges","07/02/2018"
"Wolverhampton City Council","http://opendatacommunities.org/id/metropolitan-district-council/wolverhampton","WWW.GOV.UK","10.00","Revenues","8999","Services - Professional Fees","07/02/2018"
"Wolverhampton City Council","http://opendatacommunities.org/id/metropolitan-district-council/wolverhampton","LOYD 37 CHURCH STREET","150.00","Duke Street Bungalows","6011","Provisions (Not for resale)","07/02/2018"
"Wolverhampton City Council","http://opendatacommunities.org/id/metropolitan-district-council/wolverhampton","Trainline","19.45","SEN Special Education Admin","4112","Public Transport","07/02/2018"
"Wolverhampton City Council","http://opendatacommunities.org/id/metropolitan-district-council/wolverhampton","WESTMINSTER FORUM","420.00","Learning Technologies","7392","Services - Consultants","07/02/2018"
"Wolverhampton City Council","http://opendatacommunities.org/id/metropolitan-district-council/wolverhampton","Amazon UK Marketplace","2.81","The Clangers & TV Puppets","5942","Books","06/02/2018"
"Wolverhampton City Council","http://opendatacommunities.org/id/metropolitan-district-council/wolverhampton","POST OFFICE COUNTER","65.00","Civic Centre Catering","9402","Comms - Postage","06/02/2018"
"Wolverhampton City Council","http://opendatacommunities.org/id/metropolitan-district-council/wolverhampton","WOLVERHAMPTON TROPHY C","12.99","Head of Strategic Commissioning � People","5999","Equipment - Purchase","06/02/2018"
"Wolverhampton City Council","http://opendatacommunities.org/id/metropolitan-district-council/wolverhampton","SCREWFIX DIRECT LT","32.13","EIP Locality 4","5211","Equipment - Purchase","06/02/2018"
"Wolverhampton City Council","http://opendatacommunities.org/id/metropolitan-district-council/wolverhampton","ASDA HOME SHOPPING","64.29","Ernest Bold Court","5411","Provisions (Not for resale)","06/02/2018"
"Wolverhampton City Council","http://opendatacommunities.org/id/metropolitan-district-council/wolverhampton","GROUP SERVICES","400.00","Head of Service - LAC","8999","Services - Professional Fees","06/02/2018"
"Wolverhampton City Council","http://opendatacommunities.org/id/metropolitan-district-council/wolverhampton","WWW.KINGSACCESSTECHNOL","458.00","Environmental Health - Pub Prot - Gen","5735","Equipment - Purchase","06/02/2018"
"Wolverhampton City Council","http://opendatacommunities.org/id/metropolitan-district-council/wolverhampton","THE POST OFFICE","7.80","CIN/CP Social Work Unit - Area 4","9402","Section 17","06/02/2018"
"Wolverhampton City Council","http://opendatacommunities.org/id/metropolitan-district-council/wolverhampton","PO LOW HILL 1592","200.00","EIP Locality 7","6011","Grant Payments","06/02/2018"
"Wolverhampton City Council","http://opendatacommunities.org/id/metropolitan-district-council/wolverhampton","PO LOW HILL 1592","200.00","EIP Locality 7","6011","Grant Payments","06/02/2018"
"Wolverhampton City Council","http://opendatacommunities.org/id/metropolitan-district-council/wolverhampton","THE RANGE","26.62","Fostering Team & Allowances","5311","Equipment - Purchase","06/02/2018"
"Wolverhampton City Council","http://opendatacommunities.org/id/metropolitan-district-council/wolverhampton","POST OFFICE COUNTER","201.50","Fostering Team & Allowances","9402","Comms - Postage","06/02/2018"
"Wolverhampton City Council","http://opendatacommunities.org/id/metropolitan-district-council/wolverhampton","NOTEMACHINE","250.00","Headstart Phase 3","6011","Financial Assistance In Exceptional Circ","06/02/2018"
"Wolverhampton City Council","http://opendatacommunities.org/id/metropolitan-district-council/wolverhampton","ARGOS RETAIL GROUP","282.50","Education Business Partnership","5310","Equipment - Purchase","06/02/2018"
"Wolverhampton City Council","http://opendatacommunities.org/id/metropolitan-district-council/wolverhampton","Trainline","23.65","Youth Offending Team","4112","Public Transport","06/02/2018"
"Wolverhampton City Council","http://opendatacommunities.org/id/metropolitan-district-council/wolverhampton","THE POST OFFICE","2.42","Cemeteries","9402","Comms - Postage","06/02/2018"
"Wolverhampton City Council","http://opendatacommunities.org/id/metropolitan-district-council/wolverhampton","WEST COAST TRAINS","188.00","Intensive Family Support Team","4112","Public Transport","06/02/2018"
"Wolverhampton City Council","http://opendatacommunities.org/id/metropolitan-district-council/wolverhampton","ALDI 78 772","228.86","Upper Pendeford Farm Childrens Home","5411","Provisions (Not for resale)","06/02/2018"
"Wolverhampton City Council","http://opendatacommunities.org/id/metropolitan-district-council/wolverhampton","HERTZ","118.30","Headstart Phase 3","3357","Hire of Vehicles","06/02/2018"
"Wolverhampton City Council","http://opendatacommunities.org/id/metropolitan-district-council/wolverhampton","LIDDELL ELECTRICAL DIS","59.90","Culwell Street Depot","5065","Materials","06/02/2018"
"Wolverhampton City Council","http://opendatacommunities.org/id/metropolitan-district-council/wolverhampton","Amazon UK Marketplace","140.38","EIP Locality 1","5942","Equipment - Purchase","06/02/2018"
"Wolverhampton City Council","http://opendatacommunities.org/id/metropolitan-district-council/wolverhampton","AMAZON EU AMAZON.CO.UK","12.48","Technical Material","5999","Equipment - Purchase","06/02/2018"
"Wolverhampton City Council","http://opendatacommunities.org/id/metropolitan-district-council/wolverhampton","BRITANNIA","-40.50","Emergency Duty Team","7011","Services - Supplies & Services to users","06/02/2018"
"Wolverhampton City Council","http://opendatacommunities.org/id/metropolitan-district-council/wolverhampton","BRITANNIA","40.50","Emergency Duty Team","7011","Services - Supplies & Services to users","06/02/2018"
"Wolverhampton City Council","http://opendatacommunities.org/id/metropolitan-district-council/wolverhampton","Amazon UK Marketplace","8.45","EIP Locality 2","5942","Equipment - Purchase","06/02/2018"
"Wolverhampton City Council","http://opendatacommunities.org/id/metropolitan-district-council/wolverhampton","CURRYS ONLINE","124.17","LAC Transitions Team","5732","Client Allowances","06/02/2018"
"Wolverhampton City Council","http://opendatacommunities.org/id/metropolitan-district-council/wolverhampton","POST OFFICE COUNTER","101.50","Adoption and Residence Team & Allowances","9402","Comms - Postage","06/02/2018"
"Wolverhampton City Council","http://opendatacommunities.org/id/metropolitan-district-council/wolverhampton","BAKER ROSS LTD","14.66","Education And Access","5970","Materials","06/02/2018"
"Wolverhampton City Council","http://opendatacommunities.org/id/metropolitan-district-council/wolverhampton","Amazon UK Marketplace","102.04","The Clangers & TV Puppets","5942","Books","06/02/2018"
"Wolverhampton City Council","http://opendatacommunities.org/id/metropolitan-district-council/wolverhampton","THE BIKEABILITY TRUST","411.63","Cycling Schemes - Bikeability","5111","Equipment - Purchase","05/02/2018"
"Wolverhampton City Council","http://opendatacommunities.org/id/metropolitan-district-council/wolverhampton","AMAZON SVCS EU-UK AMAZ","-79.99","Welfare Rights","5942","Equipment - Purchase","05/02/2018"
"Wolverhampton City Council","http://opendatacommunities.org/id/metropolitan-district-council/wolverhampton","ASDA SUPERSTORE","15.00","Children & Family Contact Services","5411","Provisions (Not for resale)","05/02/2018"
"Wolverhampton City Council","http://opendatacommunities.org/id/metropolitan-district-council/wolverhampton","Trainline","179.45","Legal Services","4112","Public Transport","05/02/2018"
"Wolverhampton City Council","http://opendatacommunities.org/id/metropolitan-district-council/wolverhampton","WWW.ARTDISCOUNT.CO.UK","149.00","Education And Access","5111","Equipment - Purchase","05/02/2018"
"Wolverhampton City Council","http://opendatacommunities.org/id/metropolitan-district-council/wolverhampton","ASDA SUPERSTORE","80.00","CIN/CP Social Work Unit - Area 3","5411","No Recourse to Public Funds","05/02/2018"
"Wolverhampton City Council","http://opendatacommunities.org/id/metropolitan-district-council/wolverhampton","ASDA SUPERSTORE","160.00","CIN/CP Social Work Unit - Area 3","5411","No Recourse to Public Funds","05/02/2018"
"Wolverhampton City Council","http://opendatacommunities.org/id/metropolitan-district-council/wolverhampton","COPTHORNE HOTEL NE","89.00","Adoption and Residence Team & Allowances","7011","Accommodation Costs","05/02/2018"
"Wolverhampton City Council","http://opendatacommunities.org/id/metropolitan-district-council/wolverhampton","Amazon UK Marketplace","14.54","The Clangers & TV Puppets","5942","Books","05/02/2018"
"Wolverhampton City Council","http://opendatacommunities.org/id/metropolitan-district-council/wolverhampton","Amazon UK Marketplace","2.27","The Clangers & TV Puppets","5942","Materials","05/02/2018"
"Wolverhampton City Council","http://opendatacommunities.org/id/metropolitan-district-council/wolverhampton","Amazon UK Marketplace","2.68","The Clangers & TV Puppets","5942","Books","05/02/2018"
"Wolverhampton City Council","http://opendatacommunities.org/id/metropolitan-district-council/wolverhampton","Amazon UK Marketplace","7.16","The Clangers & TV Puppets","5942","Books","05/02/2018"
"Wolverhampton City Council","http://opendatacommunities.org/id/metropolitan-district-council/wolverhampton","Amazon UK Marketplace","2.80","The Clangers & TV Puppets","5942","Books","05/02/2018"
"Wolverhampton City Council","http://opendatacommunities.org/id/metropolitan-district-council/wolverhampton","Amazon UK Marketplace","3.45","The Clangers & TV Puppets","5942","Books","05/02/2018"
"Wolverhampton City Council","http://opendatacommunities.org/id/metropolitan-district-council/wolverhampton","PRODUCT SUPPORT AG","6.66","Headstart - Young People Engagement","5968","Computing - Maint Agreements","05/02/2018"
"Wolverhampton City Council","http://opendatacommunities.org/id/metropolitan-district-council/wolverhampton","PRODUCT SUPPORT AG","6.66","Headstart - Young People Engagement","5968","Computing - Maint Agreements","05/02/2018"
"Wolverhampton City Council","http://opendatacommunities.org/id/metropolitan-district-council/wolverhampton","SAINSBURYS (2340)","10.83","Headstart - Young People Engagement","5411","Materials","05/02/2018"
"Wolverhampton City Council","http://opendatacommunities.org/id/metropolitan-district-council/wolverhampton","POST OFFICE COUNTER","1.75","IMPACT","9402","Comms - Postage","05/02/2018"
"Wolverhampton City Council","http://opendatacommunities.org/id/metropolitan-district-council/wolverhampton","WWW.WMCA.CO.UK","16.20","IMPACT","9399","Services - Fees and Charges","05/02/2018"
"Wolverhampton City Council","http://opendatacommunities.org/id/metropolitan-district-council/wolverhampton","WWW.WMCA.CO.UK","0.00","IMPACT","9399","Services - Fees and Charges","05/02/2018"
"Wolverhampton City Council","http://opendatacommunities.org/id/metropolitan-district-council/wolverhampton","Amazon UK Marketplace","20.97","Inclusion Support","5942","Books","05/02/2018"
"Wolverhampton City Council","http://opendatacommunities.org/id/metropolitan-district-council/wolverhampton","ASDA SUPERSTORE","28.75","EIP Locality 5","5411","Grant Payments","05/02/2018"
"Wolverhampton City Council","http://opendatacommunities.org/id/metropolitan-district-council/wolverhampton","SANDHU","21.00","EIP Locality 5","5411","Grant Payments","05/02/2018"
"Wolverhampton City Council","http://opendatacommunities.org/id/metropolitan-district-council/wolverhampton","POST OFFICE COUNTER","121.00","EIP Locality 7","9402","Comms - Postage","05/02/2018"
"Wolverhampton City Council","http://opendatacommunities.org/id/metropolitan-district-council/wolverhampton","Amazon UK Marketplace","7.82","Northicote Farm","5942","Equipment - R & M","05/02/2018"
"Wolverhampton City Council","http://opendatacommunities.org/id/metropolitan-district-council/wolverhampton","ASDA SUPERSTORE","2.96","Mayoral Expenses","5411","Hospitality","05/02/2018"
"Wolverhampton City Council","http://opendatacommunities.org/id/metropolitan-district-council/wolverhampton","SAINSBURYS PFS (1340)","22.50","Mayoral Expenses","5541","Petrol","05/02/2018"
"Wolverhampton City Council","http://opendatacommunities.org/id/metropolitan-district-council/wolverhampton","NAMESCO","38.97","Service Development Team","4816","Computing - Purchase of Software","05/02/2018"
"Wolverhampton City Council","http://opendatacommunities.org/id/metropolitan-district-council/wolverhampton","IBIS EARLS COURT","77.92","LAC Education Team (LACE)","7011","Services - Supplies & Services to users","05/02/2018"
"Wolverhampton City Council","http://opendatacommunities.org/id/metropolitan-district-council/wolverhampton","ARGOS LTD","29.98","LAC Transitions Team","5310","Client Allowances","05/02/2018"
"Wolverhampton City Council","http://opendatacommunities.org/id/metropolitan-district-council/wolverhampton","ARGOS LTD","58.98","LAC Transitions Team","5310","Client Allowances","05/02/2018"
"Wolverhampton City Council","http://opendatacommunities.org/id/metropolitan-district-council/wolverhampton","AMAZON SVCS EU-UK AMAZ","9.15","Cemeteries","5942","Books","05/02/2018"
"Wolverhampton City Council","http://opendatacommunities.org/id/metropolitan-district-council/wolverhampton","AMAZON SVCS EU-UK AMAZ","14.54","Cemeteries","5942","Books","05/02/2018"
"Wolverhampton City Council","http://opendatacommunities.org/id/metropolitan-district-council/wolverhampton","Trainline","69.50","SWP - Infrastructure","4112","Public Transport","05/02/2018"
"Wolverhampton City Council","http://opendatacommunities.org/id/metropolitan-district-council/wolverhampton","AMAZON SVCS EU-UK AMAZ","18.35","Strategic ICTS (ICT Serv Budget)","5942","Computing - Purchase of Hardware","05/02/2018"
"Wolverhampton City Council","http://opendatacommunities.org/id/metropolitan-district-council/wolverhampton","WILKO RETAIL LIMIT","41.05","The Maltings","5722","Equipment - Purchase","05/02/2018"
"Wolverhampton City Council","http://opendatacommunities.org/id/metropolitan-district-council/wolverhampton","FACEBK A7JGUDJC22","354.10","Service Wide","7311","Marketing \ Non-staff advertising","05/02/2018"
"Wolverhampton City Council","http://opendatacommunities.org/id/metropolitan-district-council/wolverhampton","AO RETAIL LIMITED","189.00","LAC Transitions Team","5722","Equipment - Purchase","05/02/2018"
"Wolverhampton City Council","http://opendatacommunities.org/id/metropolitan-district-council/wolverhampton","WESTMINSTER FORUM","80.00","Director of Education","7392","Services - Consultants","05/02/2018"
"Wolverhampton City Council","http://opendatacommunities.org/id/metropolitan-district-council/wolverhampton","WEST MID TRAVEL","94.20","Community Pathways","4131","Public Transport","05/02/2018"
"Wolverhampton City Council","http://opendatacommunities.org/id/metropolitan-district-council/wolverhampton","MARKS&SPENCER PLC SACA","26.67","MASH","5411","Provisions (Not for resale)","05/02/2018"
"Wolverhampton City Council","http://opendatacommunities.org/id/metropolitan-district-council/wolverhampton","HOME BARGAINS WOLVERHA","20.77","Duke Street Bungalows","5251","Equipment - R & M","05/02/2018"
"Wolverhampton City Council","http://opendatacommunities.org/id/metropolitan-district-council/wolverhampton","HOME BARGAINS WOLVERHA","23.07","Duke Street Bungalows","5251","Equipment - R & M","05/02/2018"
"Wolverhampton City Council","http://opendatacommunities.org/id/metropolitan-district-council/wolverhampton","BOOKWHEN","9.00","Craftplay","7372","Computing - Purchase of Software","05/02/2018"
"Wolverhampton City Council","http://opendatacommunities.org/id/metropolitan-district-council/wolverhampton","WIX.COM","46.57","Technical Support","5968","Subscriptions","05/02/2018"
"Wolverhampton City Council","http://opendatacommunities.org/id/metropolitan-district-council/wolverhampton","Wix.com","93.13","Technical Support","5817","Computing - Purchase of Software","05/02/2018"
"Wolverhampton City Council","http://opendatacommunities.org/id/metropolitan-district-council/wolverhampton","Weebly","129.00","Technical Support","5817","Computing - Purchase of Software","05/02/2018"
"Wolverhampton City Council","http://opendatacommunities.org/id/metropolitan-district-council/wolverhampton","AMAZON EU AMAZON.CO.UK","29.95","Global Budgets","5999","Books","05/02/2018"
"Wolverhampton City Council","http://opendatacommunities.org/id/metropolitan-district-council/wolverhampton","WWW.CASSART.CO.UK","45.37","Education And Access","5970","Equipment - Purchase","05/02/2018"
"Wolverhampton City Council","http://opendatacommunities.org/id/metropolitan-district-council/wolverhampton","ASDA HOME SHOPPING","-0.03","Ernest Bold Court","5411","Provisions (Not for resale)","05/02/2018"
"Wolverhampton City Council","http://opendatacommunities.org/id/metropolitan-district-council/wolverhampton","ASDA HOME SHOPPING","75.79","Ernest Bold Court","5411","Provisions (Not for resale)","05/02/2018"
"Wolverhampton City Council","http://opendatacommunities.org/id/metropolitan-district-council/wolverhampton","Amazon UK Marketplace","53.97","Inclusion Support","5942","Stationery","05/02/2018"
"Wolverhampton City Council","http://opendatacommunities.org/id/metropolitan-district-council/wolverhampton","Virgin Trains","209.30","Environmental Health - Pub Prot - Gen","4112","Services - Fees and Charges","05/02/2018"
"Wolverhampton City Council","http://opendatacommunities.org/id/metropolitan-district-council/wolverhampton","WWW.ARGOS.CO.UK","139.99","CIN/CP Social Work Unit - Area 5","5310","No Recourse to Public Funds","05/02/2018"
"Wolverhampton City Council","http://opendatacommunities.org/id/metropolitan-district-council/wolverhampton","AMAZON EU AMAZON.CO.UK","20.61","Blakenhall Resource Centre","5999","Services - Supplies & Services to users","05/02/2018"
"Wolverhampton City Council","http://opendatacommunities.org/id/metropolitan-district-council/wolverhampton","SAINSBURYS (2340)","11.00","Civic Centre Catering","5411","Provisions (Not for resale)","05/02/2018"
"Wolverhampton City Council","http://opendatacommunities.org/id/metropolitan-district-council/wolverhampton","Amazon UK Marketplace","41.34","School Improvement","5942","Books","02/02/2018"
"Wolverhampton City Council","http://opendatacommunities.org/id/metropolitan-district-council/wolverhampton","GRO HM PASSPORT OFFICE","7.71","LAC Transitions Team","9399","Client Allowances","02/02/2018"
"Wolverhampton City Council","http://opendatacommunities.org/id/metropolitan-district-council/wolverhampton","E01510300000000","240.00","EIP Locality 7","6011","Grant Payments","02/02/2018"
"Wolverhampton City Council","http://opendatacommunities.org/id/metropolitan-district-council/wolverhampton","Amazon UK Marketplace","9.98","Members Expenses","5942","Equipment - Purchase","02/02/2018"
"Wolverhampton City Council","http://opendatacommunities.org/id/metropolitan-district-council/wolverhampton","BCC REGISTER OFFIC","15.00","CIN/CP Social Work Unit - Area 6","9399","Section 17","02/02/2018"
"Wolverhampton City Council","http://opendatacommunities.org/id/metropolitan-district-council/wolverhampton","ITUNES.COM/BILL","16.50","Headstart - Learning Technologies Team","5735","Computing - Purchase of Software","02/02/2018"
"Wolverhampton City Council","http://opendatacommunities.org/id/metropolitan-district-council/wolverhampton","ITUNES.COM/BILL","24.83","Headstart - Learning Technologies Team","5735","Computing - Purchase of Software","02/02/2018"
"Wolverhampton City Council","http://opendatacommunities.org/id/metropolitan-district-council/wolverhampton","PAYPAL  DANSLEEC2LT","234.00","Communications & Marketing - General","5969","Equipment - Purchase","02/02/2018"
"Wolverhampton City Council","http://opendatacommunities.org/id/metropolitan-district-council/wolverhampton","Trainline","26.45","Communications & Marketing - General","4112","Public Transport","02/02/2018"
"Wolverhampton City Council","http://opendatacommunities.org/id/metropolitan-district-council/wolverhampton","Amazon UK Marketplace","26.46","Headstart Phase 3","5942","Materials","02/02/2018"
"Wolverhampton City Council","http://opendatacommunities.org/id/metropolitan-district-council/wolverhampton","Amazon UK Marketplace","19.98","Headstart Phase 3","5942","Subsistence","02/02/2018"
"Wolverhampton City Council","http://opendatacommunities.org/id/metropolitan-district-council/wolverhampton","PREMIER INN","118.73","Headstart Phase 3","3811","Accommodation Costs","02/02/2018"
"Wolverhampton City Council","http://opendatacommunities.org/id/metropolitan-district-council/wolverhampton","WWW.DIRECT2U.CO.UK","93.00","Archives","5021","Furniture","02/02/2018"
"Wolverhampton City Council","http://opendatacommunities.org/id/metropolitan-district-council/wolverhampton","Amazon UK Marketplace","16.97","Telecare","5942","Stationery","02/02/2018"
"Wolverhampton City Council","http://opendatacommunities.org/id/metropolitan-district-council/wolverhampton","REGISTRARS OFFICE","41.00","CIN/CP Social Work Unit - Area 7","8299","Services - Fees and Charges","02/02/2018"
"Wolverhampton City Council","http://opendatacommunities.org/id/metropolitan-district-council/wolverhampton","Amazon UK Marketplace","13.32","EIP Locality 3","5942","Equipment - Purchase","02/02/2018"
"Wolverhampton City Council","http://opendatacommunities.org/id/metropolitan-district-council/wolverhampton","GOOGLE  SVCSAPPS_wolve","9.90","Civic Halls Non Direct Management A/C","5968","Subscriptions","02/02/2018"
"Wolverhampton City Council","http://opendatacommunities.org/id/metropolitan-district-council/wolverhampton","ENTERPRISE RENT-A-CAR","-201.00","Adoption and Residence Team & Allowances","3405","Hire of Vehicles","02/02/2018"
"Wolverhampton City Council","http://opendatacommunities.org/id/metropolitan-district-council/wolverhampton","TESCO STORES 5194","60.25","Towers Outdoor Education Centre","5411","Provisions (Not for resale)","02/02/2018"
"Wolverhampton City Council","http://opendatacommunities.org/id/metropolitan-district-council/wolverhampton","BETTWS MOTORS LIMITED","284.37","Towers Outdoor Education Centre","7538","Vehicle Maintenance - Repairs","02/02/2018"
"Wolverhampton City Council","http://opendatacommunities.org/id/metropolitan-district-council/wolverhampton","NUCO TECHNOLOGIES","12.98","Technical Support","7372","Computing - Purchase of Software","02/02/2018"
"Wolverhampton City Council","http://opendatacommunities.org/id/metropolitan-district-council/wolverhampton","ASDA SUPERSTORE","45.83","EIP Locality 3","5411","Grant Payments","02/02/2018"
"Wolverhampton City Council","http://opendatacommunities.org/id/metropolitan-district-council/wolverhampton","EAST & WEST AID","66.67","EIP Locality 3","8398","Grant Payments","02/02/2018"
"Wolverhampton City Council","http://opendatacommunities.org/id/metropolitan-district-council/wolverhampton","Virgin Trains","15.10","Environmental Health - Pub Prot - Gen","4112","Services - Fees and Charges","02/02/2018"
"Wolverhampton City Council","http://opendatacommunities.org/id/metropolitan-district-council/wolverhampton","ASDA SUPERSTORE","100.00","CIN/CP Social Work Unit - Area 4","5411","Section 17","02/02/2018"
"Wolverhampton City Council","http://opendatacommunities.org/id/metropolitan-district-council/wolverhampton","ASDA SUPERSTORE","160.00","CIN/CP Social Work Unit - Area 4","5411","Section 17","02/02/2018"
"Wolverhampton City Council","http://opendatacommunities.org/id/metropolitan-district-council/wolverhampton","COZENS & COLE LTD","32.70","Civic Centre Repairs & Maintenance","5251","Equipment - Purchase","02/02/2018"
"Wolverhampton City Council","http://opendatacommunities.org/id/metropolitan-district-council/wolverhampton","AMAZON SVCS EU-UK AMAZ","79.99","Welfare Rights","5942","Equipment - Purchase","02/02/2018"
"Wolverhampton City Council","http://opendatacommunities.org/id/metropolitan-district-council/wolverhampton","Amazon UK Marketplace","21.64","Venice Daspara - ACE NPO WAG","5942","Equipment - Purchase","02/02/2018"
"Wolverhampton City Council","http://opendatacommunities.org/id/metropolitan-district-council/wolverhampton","WWW.AMARIPLASTICS.COM","24.91","Venice Daspara - ACE NPO WAG","5251","Equipment - Purchase","02/02/2018"
"Wolverhampton City Council","http://opendatacommunities.org/id/metropolitan-district-council/wolverhampton","WCC - CIVIC CENTRE CAT","2.60","IMPACT","9399","Services - Fees and Charges","02/02/2018"
"Wolverhampton City Council","http://opendatacommunities.org/id/metropolitan-district-council/wolverhampton","DISCLOSURE AND BARRING","25.00","IMPACT","9399","Services - Fees and Charges","02/02/2018"
"Wolverhampton City Council","http://opendatacommunities.org/id/metropolitan-district-council/wolverhampton","LOVE2SHOP.CO.UK","20.00","Education Business Partnership","8641","Educ Trips, Holidays, Outings, Activity","02/02/2018"
"Wolverhampton City Council","http://opendatacommunities.org/id/metropolitan-district-council/wolverhampton","WEST COAST TRAINS","20.20","City Direct","4112","Public Transport","02/02/2018"
"Wolverhampton City Council","http://opendatacommunities.org/id/metropolitan-district-council/wolverhampton","AMAZON EU AMAZON.CO.UK","28.09","LAC Education Team (LACE)","5999","Equipment - Purchase","02/02/2018"
"Wolverhampton City Council","http://opendatacommunities.org/id/metropolitan-district-council/wolverhampton","AMAZON SVCS EU-UK AMAZ","6.48","Cemeteries","5942","Books","02/02/2018"
"Wolverhampton City Council","http://opendatacommunities.org/id/metropolitan-district-council/wolverhampton","B&M RETAIL","25.82","LAC Transitions Team","5310","Client Allowances","02/02/2018"
"Wolverhampton City Council","http://opendatacommunities.org/id/metropolitan-district-council/wolverhampton","POUNDSTRETCHER 703","4.99","LAC Transitions Team","5714","Client Allowances","02/02/2018"
"Wolverhampton City Council","http://opendatacommunities.org/id/metropolitan-district-council/wolverhampton","EBUYER (UK) LTD","168.39","Strategic ICTS (ICT Serv Budget)","5722","Equipment - Purchase","02/02/2018"
"Wolverhampton City Council","http://opendatacommunities.org/id/metropolitan-district-council/wolverhampton","ASDA HOME SHOPPING","30.40","Upper Pendeford Farm Childrens Home","5411","Provisions (Not for resale)","02/02/2018"
"Wolverhampton City Council","http://opendatacommunities.org/id/metropolitan-district-council/wolverhampton","PAYPAL  VIRGINTRAIN","56.00","MASH","4789","Section 17","02/02/2018"
"Wolverhampton City Council","http://opendatacommunities.org/id/metropolitan-district-council/wolverhampton","PAYPAL  VIRGINTRAIN","68.00","MASH","4789","Section 17","02/02/2018"
"Wolverhampton City Council","http://opendatacommunities.org/id/metropolitan-district-council/wolverhampton","LANDSCAPE SERVICES LTD","270.83","Landscape","0780","Subscriptions","01/02/2018"
"Wolverhampton City Council","http://opendatacommunities.org/id/metropolitan-district-council/wolverhampton","SAINSBURYS","150.00","Duke Street Bungalows","6011","Provisions (Not for resale)","01/02/2018"
"Wolverhampton City Council","http://opendatacommunities.org/id/metropolitan-district-council/wolverhampton","WICKES","36.35","Northicote Farm","5211","Equipment - R & M","01/02/2018"
"Wolverhampton City Council","http://opendatacommunities.org/id/metropolitan-district-council/wolverhampton","REGISTRARS OFFICE","30.00","IMPACT","8299","Training Expenses","01/02/2018"
"Wolverhampton City Council","http://opendatacommunities.org/id/metropolitan-district-council/wolverhampton","WWWTRAINAIDCOUK","420.00","IMPACT","8299","Training Expenses","01/02/2018"
"Wolverhampton City Council","http://opendatacommunities.org/id/metropolitan-district-council/wolverhampton","WEST MID TRAVEL","492.75","IMPACT","4131","Public Transport","01/02/2018"
"Wolverhampton City Council","http://opendatacommunities.org/id/metropolitan-district-council/wolverhampton","Amazon UK Marketplace","9.38","Bert Williams Leisure Centre","5942","Books","01/02/2018"
"Wolverhampton City Council","http://opendatacommunities.org/id/metropolitan-district-council/wolverhampton","REGISTRARS OFFICE","11.00","Childrens with Disabilities Team","8299","Section 17","01/02/2018"
"Wolverhampton City Council","http://opendatacommunities.org/id/metropolitan-district-council/wolverhampton","WEST COAST TRAINS","15.60","City Direct","4112","Public Transport","01/02/2018"
"Wolverhampton City Council","http://opendatacommunities.org/id/metropolitan-district-council/wolverhampton","AMAZON EU AMAZON.CO.UK","28.09","LAC Education Team (LACE)","5999","Equipment - Purchase","01/02/2018"
"Wolverhampton City Council","http://opendatacommunities.org/id/metropolitan-district-council/wolverhampton","AMAZON EU AMAZON.CO.UK","28.09","LAC Education Team (LACE)","5999","Equipment - Purchase","01/02/2018"
"Wolverhampton City Council","http://opendatacommunities.org/id/metropolitan-district-council/wolverhampton","AMAZON EU AMAZON.CO.UK","28.08","LAC Education Team (LACE)","5999","Equipment - Purchase","01/02/2018"
"Wolverhampton City Council","http://opendatacommunities.org/id/metropolitan-district-council/wolverhampton","CT WOLVERHAMPTON","-140.00","LAC Transitions Team","8398","Client Allowances","01/02/2018"
"Wolverhampton City Council","http://opendatacommunities.org/id/metropolitan-district-council/wolverhampton","ARGOS DIRECT","444.90","LAC Transitions Team","5310","Client Allowances","01/02/2018"
"Wolverhampton City Council","http://opendatacommunities.org/id/metropolitan-district-council/wolverhampton","ARGOS DIRECT","126.90","LAC Transitions Team","5310","Client Allowances","01/02/2018"
"Wolverhampton City Council","http://opendatacommunities.org/id/metropolitan-district-council/wolverhampton","CT WOLVERHAMPTON","75.00","LAC Transitions Team","8398","Client Allowances","01/02/2018"
"Wolverhampton City Council","http://opendatacommunities.org/id/metropolitan-district-council/wolverhampton","CT WOLVERHAMPTON","150.00","LAC Transitions Team","8398","Client Allowances","01/02/2018"
"Wolverhampton City Council","http://opendatacommunities.org/id/metropolitan-district-council/wolverhampton","HSE","25.00","Health & Safety","9399","Services - Fees and Charges","01/02/2018"
"Wolverhampton City Council","http://opendatacommunities.org/id/metropolitan-district-council/wolverhampton","PREMIER INN","-248.00","Intensive Family Support Team","3811","Services - Supplies & Services to users","01/02/2018"
"Wolverhampton City Council","http://opendatacommunities.org/id/metropolitan-district-council/wolverhampton","PREMIER INN","248.00","Intensive Family Support Team","3811","Services - Supplies & Services to users","01/02/2018"
"Wolverhampton City Council","http://opendatacommunities.org/id/metropolitan-district-council/wolverhampton","AO RETAIL LIMITED","178.33","LAC Transitions Team","5722","Client Allowances","01/02/2018"
"Wolverhampton City Council","http://opendatacommunities.org/id/metropolitan-district-council/wolverhampton","AO RETAIL LIMITED","381.67","LAC Transitions Team","5722","Client Allowances","01/02/2018"
"Wolverhampton City Council","http://opendatacommunities.org/id/metropolitan-district-council/wolverhampton","DADS AND DISABILITY","154.00","LAC Transitions Team","8398","Client Allowances","01/02/2018"
"Wolverhampton City Council","http://opendatacommunities.org/id/metropolitan-district-council/wolverhampton","POUNDSTRETCHER 772","248.68","LAC Transitions Team","5714","Client Allowances","01/02/2018"
"Wolverhampton City Council","http://opendatacommunities.org/id/metropolitan-district-council/wolverhampton","FlybeB1HH B1HH6V","193.97","Headstart Phase 3","4511","Public Transport","01/02/2018"
"Wolverhampton City Council","http://opendatacommunities.org/id/metropolitan-district-council/wolverhampton","WWW.3WMLTD.COM","40.71","Connexions Contract","7399","Stationery","01/02/2018"
"Wolverhampton City Council","http://opendatacommunities.org/id/metropolitan-district-council/wolverhampton","SCREWFIX DIRECT LT","33.14","Culwell Street Depot","5211","R&M - Departmental planned (external)","01/02/2018"
"Wolverhampton City Council","http://opendatacommunities.org/id/metropolitan-district-council/wolverhampton","CARVER/WOLVERHAMPTON/L","65.45","Culwell Street Depot","5211","Equipment - Purchase","01/02/2018"
"Wolverhampton City Council","http://opendatacommunities.org/id/metropolitan-district-council/wolverhampton","POST OFFICE COUNTER","195.00","Vulnerable Young Persons Team","9402","Comms - Postage","01/02/2018"
"Wolverhampton City Council","http://opendatacommunities.org/id/metropolitan-district-council/wolverhampton","ARGOS RETAIL GROUP","157.50","Specialist Support Service - North","5310","Equipment - Purchase","01/02/2018"
"Wolverhampton City Council","http://opendatacommunities.org/id/metropolitan-district-council/wolverhampton","Trainline","57.45","CIN/CP Social Work Unit - Area 4","4112","Section 17","01/02/2018"
"Wolverhampton City Council","http://opendatacommunities.org/id/metropolitan-district-council/wolverhampton","Trainline","195.50","CIN/CP Social Work Unit - Area 4","4112","Public Transport","01/02/2018"
"Wolverhampton City Council","http://opendatacommunities.org/id/metropolitan-district-council/wolverhampton","REGISTRARS OFFICE","11.00","CIN/CP Social Work Unit - Area 7","8299","Section 17","01/02/2018"
"Wolverhampton City Council","http://opendatacommunities.org/id/metropolitan-district-council/wolverhampton","PP GEMOLADE LTD","25.51","Education And Access","5719","Equipment - Purchase","01/02/2018"
"Wolverhampton City Council","http://opendatacommunities.org/id/metropolitan-district-council/wolverhampton","Trainline","98.50","CIN/CP Social Work Unit - Area 4","4112","Section 17","01/02/2018"
"Wolverhampton City Council","http://opendatacommunities.org/id/metropolitan-district-council/wolverhampton","Trainline","9.05","Touring Costs","4112","Public Transport","01/02/2018"
"Wolverhampton City Council","http://opendatacommunities.org/id/metropolitan-district-council/wolverhampton","LOYD 37 CHURCH STREET","200.00","EIP Locality 8","6011","Grant Payments","01/02/2018"
"Wolverhampton City Council","http://opendatacommunities.org/id/metropolitan-district-council/wolverhampton","HOMEZONE","190.42","LAC Transitions Team","5211","Client Allowances","01/02/2018"
"Wolverhampton City Council","http://opendatacommunities.org/id/metropolitan-district-council/wolverhampton","FACEBK Q5VHUDWG52","7.35","Audience Development","7311","Marketing \ Non-staff advertising","01/02/2018"
"Wolverhampton City Council","http://opendatacommunities.org/id/metropolitan-district-council/wolverhampton","NOTEMACHINE","250.00","CIN/CP Social Work Unit - Area 6","6011","Financial Assistance In Exceptional Circ","01/02/2018"
"Wolverhampton City Council","http://opendatacommunities.org/id/metropolitan-district-council/wolverhampton","WM MORRISON 024","16.66","Fostering Team & Allowances","5411","Provisions (Not for resale)","01/02/2018"
"Wolverhampton City Council","http://opendatacommunities.org/id/metropolitan-district-council/wolverhampton","FACEBK KG99EFJAR2","48.80","Communications & Marketing - General","7311","Marketing \ Non-staff advertising","01/02/2018"
"Wolverhampton City Council","http://opendatacommunities.org/id/metropolitan-district-council/wolverhampton","IVOJO MULTIMEDIA LIMIT","126.00","Venice Daspara - ACE NPO WAG","5046","Equipment - Purchase","01/02/2018"
"Wolverhampton City Council","http://opendatacommunities.org/id/metropolitan-district-council/wolverhampton","FACEBK JG99EFJAR2","173.28","Communications & Marketing - General","7311","Marketing \ Non-staff advertising","01/02/2018"
"Wolverhampton City Council","http://opendatacommunities.org/id/metropolitan-district-council/wolverhampton","Amazon UK Marketplace","11.16","WV Active Business Support","5942","Books","01/02/2018"
"Wolverhampton City Council","http://opendatacommunities.org/id/metropolitan-district-council/wolverhampton","FACEBK PB4J8DAA82","36.86","WV Active Business Support","7311","Marketing \ Non-staff advertising","01/02/2018"
"Wolverhampton City Council","http://opendatacommunities.org/id/metropolitan-district-council/wolverhampton","FACEBK NB4J8DAA82","88.68","WV Active Business Support","7311","Marketing \ Non-staff advertising","01/02/2018"
"Wolverhampton City Council","http://opendatacommunities.org/id/metropolitan-district-council/wolverhampton","AMAZON EU AMAZON.CO.UK","24.10","Headstart - Young People Engagement","5999","Stationery","01/02/2018"
